Cogmind - Beta 15 @@@ ROGUE MODE // 2025.07.16 @ 21:17:07 Player: EX-OCT Result: Destroyed by H-88 Terminator with KE Penetrator Performance ------------- Evolutions (9) 4500 Regions Visited (29) 5800 Robots Destroyed (394) 1970 Value Destroyed (20085) 20085 Prototype IDs (36) 720 Alien Tech Used (0) 0 Bonus (18469) 18469 TOTAL SCORE: 51544 Bonus ------- High Alert Combat Kills 2282 Follower Combat Kills 8607 Entered Garrisons 1600 Used RIF Installer 5000 Built Enhanced Grunts 300 A7 Reached Mainframe 300 Met R17 at Cetus 500 Friendly Fire -120 Cogmind --------- Core Integrity 0/1600 Matter 300/300 Energy 99/100 System Corruption 21% Temperature Cool (0) Movement Core (50) Location -1/Access Parts ------- > --- POWER (2) -------- (None) > --- PROPULSION (8) --- (None) > --- UTILITY (11) ----- Advanced Signal Interpreter Advanced Signal Interpreter Advanced Terrain Scan Processor Advanced Target Analyzer Advanced Target Analyzer Core Analyzer > --- WEAPON (4) ------- (None) > --- INVENTORY (5) ---- Light Antimatter Reactor Micro Antimatter Reactor Improved Remote Force Field Relay Coupler [Proto] (16) Relay Coupler [Proto] (16) Peak State ------------ > --- POWER ------------ Micro Antimatter Reactor Quantum Reactor > --- PROPULSION ------- Linear Gravjet Combat Antigrav System Combat Antigrav System Combat Antigrav System Combat Linear Gravjet Combat Linear Gravjet Combat Linear Gravjet Field Propulsion Drive > --- UTILITY ---------- Advanced Cryofiber Web Advanced Sensor Array Advanced Signal Interpreter Long-range Terrain Scanner Terrain Scan Processor Advanced Terrain Scan Processor Advanced Melee Analysis Suite Advanced Target Analyzer Core Analyzer Reaction Control System Medium Reflective Plating > --- WEAPON ----------- Enhanced Force Lance Enhanced Force Lance Enhanced Force Lance Enhanced Force Lance > --- INVENTORY -------- Light Antimatter Reactor Relay Coupler [Proto] Relay Coupler [Proto] Enhanced Nova Cannon Mini Smartbomb Launcher [Rating: 169] Favorites ----------- Power Quantum Reactor Engine Cooled Ion Engine Power Core Reinforced Fission Core Reactor Quantum Reactor Propulsion Centrium Heavy Treads Treads Centrium Heavy Treads Leg Aluminum Leg Hover Unit Combat Linear Gravjet Flight Unit Xenon Bombardment Thruster Utility Relay Coupler [NC] Device Advanced Sensor Array Storage Large Storage Unit Processor Advanced Signal Interpreter Hackware Relay Coupler [NC] Protection Centrium Medium Armor Plating Weapon Enhanced Autogun Energy Gun Heavy Laser Energy Cannon Cooled Particle Cannon Ballistic Gun Enhanced Autogun Ballistic Cannon Light Antimatter Cannon Launcher Mini Smartbomb Launcher Special Weapon Improved Remote Datajack Impact Weapon Power Maul Slashing Weapon Phasing Sabre Piercing Weapon Enhanced Force Lance Special Melee Weapon Improved Datajack Build | -11 -10 -10 -9 -9 -8 -8 -8 -8 -7 -7 -6 -6 -6 -6 -6 -6 -6 -5 -5 -5 -5 -4 -4 -4 -4 -3 -3 -2 -1 ------- Run | Yrd Mat Min Mat Min Mat Gar Mat Gar Fac Gar Fac Was Fac Gar Ext Cet Arc Fac Gar Fac Gar Fac Gar Arm Lab Res Gar Res Acc Slots Evolved 18 | . . . 2 . 2 . . . 2 . 2 . . . . . . 2 . . . 2 . . . 2 . 2 2 Power 1 | . . . . . . . . . . . . . . . . . . . . . . 1 . . . . . . . Propulsion 6 | . . . . . . . . . 2 . . . . . . . . . . . . . . . . . . 2 2 Utility 9 | . . . 2 . . . . . . . 2 . . . . . . 2 . . . 1 . . . 2 . . . Weapon 2 | . . . . . 2 . . . . . . . . . . . . . . . . . . . . . . . . Parts Attached 410 | 7 13 9 20 1 14 9 13 7 22 16 15 . 8 24 10 9 1 4 20 6 10 4 10 33 . 31 12 39 43 Power 40 | 1 . 2 1 . 1 1 3 . 4 1 1 . . 2 . 1 . . 1 1 . . 1 3 . 4 3 2 7 Engine 5 | 1 . 1 1 . . . 1 . . . . . . . . . . . . . . . . . . . . 1 . Core 16 | . . 1 . . 1 1 2 . 4 . . . . 2 . . . . 1 1 . . . 2 . . . . 1 Reactor 19 | . . . . . . . . . . 1 1 . . . . 1 . . . . . . 1 1 . 4 3 1 6 Propulsion 104 | 2 6 5 7 1 4 2 2 . 9 4 7 . 3 7 5 2 . . 2 1 . . 1 . . 5 3 13 13 Treads 23 | . . . . . 3 2 2 . . . . . . 3 5 2 . . 2 1 . . 1 . . 1 1 . . Leg 57 | 2 6 5 7 1 1 . . . 9 4 7 . 3 1 . . . . . . . . . . . . 2 9 . Wheel . | . . . . . . . . . . . . . . . . . . . . . . . . . . . . . . Hover 20 | . . . . . . . . . . . . . . 3 . . . . . . . . . . . 4 . 4 9 Flight 4 | . . . . . . . . . . . . . . . . . . . . . . . . . . . . . 4 Utility 170 | 2 2 . 5 . 4 3 2 3 3 7 5 . 4 8 2 2 1 2 15 4 7 3 6 24 . 19 2 18 17 Device 67 | 1 . . 2 . 3 1 1 1 . 2 1 . 1 4 . 1 . . 7 2 . 1 . 5 . 13 2 10 9 Storage 9 | 1 . . 1 . 1 1 . . 1 . 1 . 1 . . . . . . . . 1 . . . 1 . . . Processor 19 | . 1 . . . . . . . 1 . 2 . . . . . . . 1 1 . 1 . . . 2 . 3 7 Hackware 63 | . 1 . . . . 1 1 2 1 4 1 . 2 4 2 . 1 2 6 1 7 . 6 17 . 3 . 1 . Protection 12 | . . . 2 . . . . . . 1 . . . . . 1 . . 1 . . . . 2 . . . 4 1 Artifact . | . . . . . . . . . . . . . . . . . . . . . . . . . . . . . . Weapon 96 | 2 5 2 7 . 5 3 6 4 6 4 2 . 1 7 3 4 . 2 2 . 3 1 2 6 . 3 4 6 6 Energy Gun 15 | 1 4 1 1 . . 1 . . . . . . . . . 1 . . . . 2 . 1 . . . 1 2 . Energy Cannon 13 | . 1 . 1 . . . . . 2 1 1 . . . . . . . . . 1 . . 3 . . 2 1 . Ballistic Gun 35 | 1 . . 3 . 3 . 5 4 2 1 . . 1 5 . 3 . 1 2 . . . 1 . . 1 . 1 1 Ballistic Cannon 3 | . . . . . . . . . . . . . . 1 . . . . . . . 1 . . . 1 . . . Launcher 5 | . . . 1 . 1 . . . . . . . . . . . . . . . . . . 2 . 1 . . . Special Weapon 10 | . . 1 . . . . 1 . 1 1 . . . 1 2 . . 1 . . . . . . . . 1 . 1 Impact Weapon 1 | . . . . . . 1 . . . . . . . . . . . . . . . . . . . . . . . Slashing Weapon 7 | . . . . . 1 . . . 1 1 1 . . . 1 . . . . . . . . . . . . 2 . Piercing Weapon 4 | . . . . . . . . . . . . . . . . . . . . . . . . . . . . . 4 Special Melee Weapon 3 | . . . 1 . . 1 . . . . . . . . . . . . . . . . . 1 . . . . . Unidentified Prototypes 30 | . 1 . 3 . 1 . . . 2 . 1 . 1 . . 4 . 1 . . . 1 . 8 . 3 . 4 . Corrupted Parts 1 | . . . . . . . . 1 . . . . . . . . . . . . . . . . . . . . . System Corruption 13 | . . . . . . . . 13 . . . . . . . . . . . . . . . . . . . . . Parts Lost 165 | . 2 1 1 . 1 5 5 4 11 4 5 . 3 19 5 . . . 6 1 4 . 1 . . 20 1 30 36 Power 19 | . . . . . . 1 1 1 3 . . . 1 1 . . . . 1 . . . . . . 2 . 2 6 Propulsion 53 | . 1 1 1 . . . 1 . 3 2 4 . 1 7 4 . . . . . . . . . . 3 . 12 13 Utility 48 | . . . . . 1 1 1 . . 1 1 . 1 3 1 . . . 4 1 1 . 1 . . 7 1 12 11 Weapon 45 | . 1 . . . . 3 2 3 5 1 . . . 8 . . . . 1 . 3 . . . . 8 . 4 6 Highest Loss Streak 15 | . 1 1 1 . 1 5 1 3 7 2 2 . 2 6 3 . . . 2 1 2 . 1 . . 9 1 9 15 To Critical Strikes 1 | . . . . . . . . . . . . . . . . . . . . . . . . . . . . 1 . Average Backups 13 | . 4 5 10 14 14 16 18 17 17 14 14 15 13 13 12 13 13 12 12 13 11 13 20 20 18 15 8 9 4 Power . | . 1 . . . . . . . . 1 1 2 1 1 2 2 1 1 . 1 1 1 . 1 2 1 2 1 . Propulsion 1 | . . . 2 4 3 3 4 4 . . . . . . 2 1 2 2 2 3 1 1 2 2 2 1 . 1 . Utility 6 | . . . 2 4 4 6 6 8 9 6 4 5 3 5 4 4 5 5 6 7 7 8 14 12 7 6 4 4 2 Weapon 3 | . 3 4 4 4 3 3 3 3 4 3 5 5 5 3 2 5 4 4 2 2 1 1 1 3 5 3 1 1 1 Tool/Special . | . . . . . . . . . . . . . . . . . . . . . . . . . . . . . . Unused Backups 48 | . . . 3 2 5 . 1 . 2 4 . . . . . 3 1 . 2 . 3 . 7 2 . 4 . 5 4 Power 6 | . . . . . . . . . . 1 . . . . . . . . . . . . 1 . . . . 2 2 Propulsion 8 | . . . . . 1 . . . 1 . . . . . . 3 1 . . . 1 . . . . 1 . . . Utility 30 | . . . 2 1 4 . 1 . 1 3 . . . . . . . . 2 . 2 . 6 2 . 3 . 1 2 Weapon 2 | . . . 1 1 . . . . . . . . . . . . . . . . . . . . . . . . . Tool/Special 2 | . . . . . . . . . . . . . . . . . . . . . . . . . . . . 2 . Average Slot Usage (%) 88 | . 95 98 99 100 99 83 93 88 86 94 94 100 94 83 89 89 86 86 85 86 86 88 88 88 89 80 65 75 67 Engine 2 | . 14 10 10 11 2 . 2 5 . . . . . . . . . . . . . 4 3 . . . . . . Core 2 | . . 3 . . 6 8 6 . 5 . . . 2 3 6 . . . 2 5 5 5 5 5 5 2 . . . Reactor 2 | . . . . . . . . . . 6 6 6 2 . . 5 6 5 2 . . . 1 5 5 5 9 6 5 Treads 7 | . . . . . 8 18 18 18 . . . . . 9 21 20 13 11 11 11 11 10 10 10 10 7 1 . . Leg 9 | . 28 26 21 22 9 . . . 25 29 25 26 25 8 . . . . . . . . . . . . 4 16 . Device 7 | . 2 . 11 11 8 8 8 1 . . 1 6 3 . 6 6 6 5 15 4 . 3 2 6 15 11 23 20 8 Storage 5 | . . . 8 11 9 9 9 9 7 7 6 6 6 6 6 6 6 5 5 5 5 5 5 5 5 3 4 3 . Processor 7 | . 13 14 11 11 9 3 . . 3 . 7 13 13 11 . . . . . 7 11 10 10 6 5 7 4 7 23 Hackware 16 | . 9 14 11 11 9 11 17 18 17 16 12 13 12 15 24 20 20 28 14 25 24 26 28 26 21 18 . . . Protection 1 | . . . 1 . . . . . . 2 4 . . . . 5 6 5 5 . 2 1 . . . 1 . 3 1 Energy Gun 1 | . 18 8 3 . . 4 4 . . . . . . . . . . . 1 . 3 2 2 . . . 2 1 . Energy Cannon 4 | . 4 13 11 . . . . . 3 15 12 6 10 1 3 . . . . . 1 5 1 3 . 2 5 5 1 Ballistic Gun 8 | . 2 . 5 22 34 10 20 26 12 . . . . 8 . 6 15 12 16 11 7 . 3 3 5 2 . . . Ballistic Cannon 1 | . . . . . . . . . . . . . . 2 2 1 . . . . . 2 4 3 5 2 . . . Special Weapon 2 | . . 6 . . . . 4 . 2 5 6 6 6 . 9 7 3 4 1 5 3 4 2 3 5 1 1 3 . Slashing Weapon 2 | . . . . . . 5 . . . 7 6 6 6 5 5 5 6 3 3 5 3 5 5 3 5 3 . 3 . Peak Build Rating 169 | 7 11 15 23 26 36 38 36 32 44 58 63 58 59 55 57 104 103 115 126 102 106 105 120 137 135 152 132 163 169 Average Rating 71 | 5 9 12 20 25 31 31 31 26 35 52 59 58 54 41 51 75 102 110 112 94 98 102 109 127 135 126 104 125 111 On Entrance 62 | . 7 11 15 23 26 36 29 27 28 42 54 58 58 55 53 53 101 101 114 102 92 92 105 120 135 135 64 131 13 Naked Turns 13 | . . . . . . . . . . . . . . . . . . . . . . . . . . 13 . . . Heaviest Build 155 | 13 13 12 37 35 42 54 61 60 63 69 64 48 53 57 60 81 68 69 79 62 68 131 141 154 139 155 101 147 72 Greatest Support 170 | 20 20 20 20 30 56 56 56 42 62 72 75 66 66 63 86 160 160 160 160 140 160 160 160 160 160 160 120 170 101 Greatest Overweight (x) 3 | . . . 1 1 1 . 1 1 1 1 1 . . 3 1 1 . . . . . . . . . 1 . 2 . Average Overweight (x) . | . . . . 1 . . . 1 . . . . . . . . . . . . . . . . . . . . . Largest Inventory Capacity 25 | 8 8 5 15 15 20 20 20 20 20 15 15 15 15 15 15 15 15 15 15 15 15 25 25 25 25 25 10 10 5 Average Capacity 16 | 7 5 5 12 15 15 17 20 20 19 15 15 15 15 15 15 15 15 15 15 15 15 23 25 25 25 23 10 9 5 Most Carried 25 | 2 5 5 15 15 15 20 20 19 20 15 15 15 15 15 15 15 15 14 15 15 15 17 25 25 20 24 10 10 5 Average Carried 14 | . 4 4 10 14 14 16 18 17 17 14 14 15 13 13 13 14 14 12 14 14 13 15 22 22 20 16 9 9 4 Final Capacity 25 | 8 5 5 15 15 15 20 20 20 15 15 15 15 15 15 15 15 15 15 15 15 15 25 25 25 25 10 10 5 5 Final Carried 25 | 2 5 5 15 15 15 20 16 18 15 15 15 15 12 13 15 14 14 13 15 15 15 17 25 20 20 5 10 5 5 Class Distribution -------------------- 12% | Scavenger-Mutant 10% | Mutant 9% | Bothacker-Gunner 8% | Botlord-Skirmisher 8% | Botlord-Tank 5% | Commander-Tank 5% | Bothacker-Mutant 5% | Scavenger-Gunner 4% | Gunner 4% | Scavenger-Tank 3% | Commander-Gunner 3% | Infiltrator-Assassin Dominant Class ---------------- Mutant | -10/Materials Scavenger-Mutant | -10/Mines Scavenger-Mutant | -9/Materials Mutant | -9/Mines Gunner | -8/Materials Scavenger-Mutant | -8/Garrison Scavenger-Gunner | -8/Materials Bothacker-Gunner | -8/Garrison Bothacker-Gunner | -7/Factory Bothacker-Gunner | -7/Garrison Scavenger-Gunner | -6/Factory Skirmisher | -6/Waste Skirmisher | -6/Factory Bothacker-Mutant | -6/Garrison Commander-Gunner | -6/Extension Commander-Tank | -6/Cetus Bothacker-Tank | -6/Archives Scavenger-Tank | -5/Factory Scavenger-Tank | -5/Garrison Botlord-Skirmisher | -5/Factory Botlord-Tank | -5/Garrison Botlord-Skirmisher | -4/Factory Botlord-Skirmisher | -4/Garrison Commander-Tank | -4/Armory Commander-Tank | -4/Lab Commander-Assassin | -3/Research Infiltrator-Skirmisher | -3/Garrison Infiltrator-Assassin | -2/Research Scavenger-Mutant | -1/Access Resources | -11 -10 -10 -9 -9 -8 -8 -8 -8 -7 -7 -6 -6 -6 -6 -6 -6 -6 -5 -5 -5 -5 -4 -4 -4 -4 -3 -3 -2 -1 ----------- Run | Yrd Mat Min Mat Min Mat Gar Mat Gar Fac Gar Fac Was Fac Gar Ext Cet Arc Fac Gar Fac Gar Fac Gar Arm Lab Res Gar Res Acc Matter Collected 13821 | 294 161 143 732 270 832 650 807 280 676 240 197 . 209 742 417 265 56 235 1013 145 722 203 431 1633 . 1261 70 593 544 Remotely 91 | 91 . . . . . . . . . . . . . . . . . . . . . . . . . . . . . Salvage Created 17373 | 96 834 228 1608 85 1038 883 744 366 1372 565 243 . 408 598 314 . 150 502 1439 84 557 169 230 837 . 1249 66 1556 1152 Parts 900 | 6 63 12 95 11 48 36 50 24 46 21 10 . 23 32 25 . 10 25 49 13 25 11 11 43 . 56 6 68 81 Haulers Intercepted 15 | . 2 . 5 . 4 . 1 . 1 . . . . . . . . . . . . . . . . 1 . 1 . Recyclers Shooed 5 | . 4 . . . . . 1 . . . . . . . . . . . . . . . . . . . . . . Parts Field Recycled . | . . . . . . . . . . . . . . . . . . . . . . . . . . . . . . Retrieved Matter . | . . . . . . . . . . . . . . . . . . . . . . . . . . . . . . Parts Self-Destructed . | . . . . . . . . . . . . . . . . . . . . . . . . . . . . . . Prevented . | . . . . . . . . . . . . . . . . . . . . . . . . . . . . . . Kills | -11 -10 -10 -9 -9 -8 -8 -8 -8 -7 -7 -6 -6 -6 -6 -6 -6 -6 -5 -5 -5 -5 -4 -4 -4 -4 -3 -3 -2 -1 ------- Run | Yrd Mat Min Mat Min Mat Gar Mat Gar Fac Gar Fac Was Fac Gar Ext Cet Arc Fac Gar Fac Gar Fac Gar Arm Lab Res Gar Res Acc Combat Hostiles Destroyed 315 | . 20 5 30 6 18 17 11 11 20 10 5 . 6 17 3 . . 6 25 . 10 3 7 20 . 21 1 19 24 Melee 37 | . . . . . . 2 1 . 4 2 1 . 1 1 2 . . . . . . 1 . . . 4 . 2 16 Guns 160 | . 17 2 10 6 17 11 10 10 11 . . . . 8 . . . 6 25 . 8 . 4 9 . 2 . 4 . Cannons 71 | . . 3 14 . . . . . 4 8 3 . 4 5 1 . . . . . 2 2 2 4 . 6 1 11 1 AOE 35 | . 3 . 3 . 1 4 . . . . . . . 3 . . . . . . . . . 6 . 8 . . 7 Classes Destroyed 21 | 2 7 . 2 . . 2 1 . . 2 . . . . . . . . 1 . . . . 4 . . . . . Worker 9 | . 1 . 1 . . . 2 . 1 . . . . . . . . . . 1 . . . . . 3 . . . Builder 15 | . 1 . . . . . 1 . 1 . . . 2 . 3 . . . . 3 . . . . . 3 . . 1 Tunneler 5 | 2 . . . . . . . . 1 . . . . . . . . . . . . . . . . . . 1 1 Hauler 15 | . 2 . 5 . 4 . 1 . 1 . . . . . . . . . . . . . . . . 1 . 1 . Recycler 15 | 1 . . 1 . 2 . . . 4 . . . 1 . 1 . . 1 . . . . . . . 1 . 2 1 Operator 8 | . 1 . 1 . . . . . 1 . . . . . . . 4 . . . . . . . . 1 . . . Watcher 12 | . 2 . 4 . 3 . 2 . . 1 . . . . . . . . . . . . . . . . . . . Swarmer 91 | . 8 . 7 6 9 . . 5 2 1 1 . 3 9 . . . . 4 . 2 . 5 5 . 4 . 2 18 Cutter 3 | . . . . . . 3 . . . . . . . . . . . . . . . . . . . . . . . Saboteur 2 | . . . . . . . . . . . . . . . . . . . . . . . . 1 . 1 . . . Grunt 97 | . 12 5 12 . 4 11 5 2 7 2 2 . . . . . . 5 17 . . 1 . 3 . 7 . 1 1 Brawler 4 | . . . . . . . . . . 1 . . . . . . . . . . . . 1 1 . 1 . . . Duelist 3 | . . . 2 . . . . . 1 . . . . . . . . . . . . . . . . . . . . Protector 1 | . . . . . . . . . . . . . . . . . . . . . . . . 1 . . . . . Sentry 45 | . . . 9 . 5 1 5 . 4 2 1 . 1 5 3 . . . 2 . 2 . . 1 . 2 . 2 . Demolisher 1 | . . . . . . . . . . 1 . . . . . . . . . . . . . . . . . . . Specialist 2 | . . . . . . . . . . . . . . . . . . . . . . . . 2 . . . . . Hunter 14 | . . . . . . . 1 2 1 1 . . 1 1 . . . . . . . . 1 3 . 2 . 1 . Programmer 47 | . . . . . . 2 . 2 5 2 1 . 1 2 . . . 1 . . 5 2 . 2 . 3 1 13 5 Heavy 1 | . . . . . . . . . . . . . . . . . . . . . . . . 1 . . . . . Behemoth 4 | . . . . . . . . . . . . . . . . . . . 2 . 1 . . . . 1 . . . Best Kill Streak 6 | 3 4 2 4 3 6 3 3 3 6 3 1 . 4 6 2 . 2 6 4 4 2 2 2 5 . 4 1 5 6 Combat Bots Only 6 | . 3 2 4 3 6 3 2 3 3 3 1 . 4 6 1 . . 5 4 . 2 2 2 5 . 4 1 5 6 Max Kills in Single Turn 5 | 1 2 1 2 1 2 2 1 1 1 1 1 . 1 2 1 . 1 2 2 1 2 1 1 2 . 4 1 1 5 Gunslinging 1 | . . . . . 1 1 . . . . . . . . . . . . 1 . . . . . . . . . . Exploded 5 | . 2 . 2 . 1 2 . . . . . . . 2 . . . . . . . . . 2 . 4 . . 5 Melee 1 | . . . . . . 1 1 . 1 1 1 . 1 1 1 . . . . . . 1 . . . 1 . 1 1 Uniques/NPCs Destroyed . | . . . . . . . . . . . . . . . . . . . . . . . . . . . . . . Combat | -11 -10 -10 -9 -9 -8 -8 -8 -8 -7 -7 -6 -6 -6 -6 -6 -6 -6 -5 -5 -5 -5 -4 -4 -4 -4 -3 -3 -2 -1 -------- Run | Yrd Mat Min Mat Min Mat Gar Mat Gar Fac Gar Fac Was Fac Gar Ext Cet Arc Fac Gar Fac Gar Fac Gar Arm Lab Res Gar Res Acc Hostile Shots Fired 3227 | . 70 40 78 11 46 84 74 93 207 134 48 . 58 372 128 . . 28 146 2 102 . 30 142 . 452 107 459 316 Missed 1037 | . 22 13 26 7 16 24 20 25 68 41 14 . 19 115 45 . . 11 25 . 21 . 9 42 . 129 50 173 122 Intercepted 3 | . . . . . . . . . . . . . . . . . . . . . . . . 3 . . . . . Hits 2190 | . 48 27 52 4 30 60 54 68 139 93 34 . 39 257 83 . . 17 121 2 81 . 21 100 . 323 57 286 194 Melee 22 | . . . 3 . . . . . 1 . . . . 2 . . . . . . 1 . . 2 . 11 2 . . Projectile 2168 | . 48 27 49 4 30 60 54 68 138 93 34 . 39 255 83 . . 17 121 2 80 . 21 98 . 312 55 286 194 AOE 11 | . . . . . . 1 . . . 4 . . . . . . . . . 2 . . . 3 . . . . 1 Critical Strikes 90 | . . 2 1 . 2 3 3 1 4 . 1 . 1 1 . . . 1 6 . 4 . 2 1 . 22 6 21 8 Part Disruptions 9 | . . . . . . . . 1 . . . . . . . . . . . . 1 . . . . 3 . 4 . Damage Taken 38025 | . 538 382 736 35 510 1070 933 790 1534 1012 855 . 511 2625 615 . . 292 3240 264 1853 43 602 1215 . 6438 1071 6024 4837 Core 6490 | . 47 153 151 . 56 90 107 73 265 66 50 . 35 563 151 . . . 313 . 150 . 74 136 . 931 51 1411 1617 Absorbed by Shields 1465 | . . . . . . . . . . . . . . . 110 . . . . . . . . 611 . 702 20 . 22 Reduced by Siege Mode 456 | . . . . . . . . . . . . . . . . . . . 200 . 89 . . . . 167 . . . Redirected to Shielding 105 | . . . . . . . . . . . . . . . . . . . . . . . . . . . . 105 . Ignored by Resistances 786 | . . . . . . . . . . 24 63 . . . . . . . . . . . . . . . 195 487 17 Regen/Repaired (Parts) 4709 | . . . 149 . 104 . . . . . . . 397 . . . . . . . 1400 1143 . 853 . 663 . . . Core Remaining (%) 44 | 100 . 20 . 62 . . . 40 . 52 . . . . . . 6 . . . 53 . . . 81 . 24 2 . Volleys Fired 1107 | 8 69 32 86 6 57 43 48 28 65 24 20 6 18 64 40 6 2 16 64 10 70 14 35 95 . 73 3 97 8 Largest 4 | 2 2 2 2 2 4 4 4 3 4 3 2 1 2 4 1 1 1 4 4 2 3 3 3 3 . 4 1 2 1 Hottest 240 | 70 118 168 136 50 103 103 113 69 91 158 60 7 60 99 98 70 5 180 180 68 159 210 210 186 . 225 120 240 120 Shots Fired 2174 | 16 94 33 166 11 205 102 121 78 170 42 39 6 34 118 42 6 3 40 200 13 109 18 63 147 . 141 4 145 8 Gun 1393 | 16 91 8 72 11 202 96 120 78 146 . . . . 67 . 1 1 37 193 5 82 2 20 47 . 38 . 60 . Cannon 575 | . 3 20 92 . . . . . 24 35 37 . 32 43 30 5 . . . . 4 4 25 45 . 81 4 85 6 Launcher 33 | . . . 2 . 3 6 . . . . . . . 3 . . . . . . . . . 9 . 8 . . 2 Special 173 | . . 5 . . . . 1 . . 7 2 6 2 5 12 . 2 3 7 8 23 12 18 46 . 14 . . . Kinetic 1208 | 8 . . 11 11 202 89 97 78 146 . . . . 81 8 6 1 35 166 5 75 2 26 66 . 76 . 19 . Thermal 705 | 8 34 33 153 . . 7 23 . 24 35 37 . 32 29 22 . . 2 27 . 11 4 19 26 . 43 4 126 6 Explosive 33 | . . . 2 . 3 6 . . . . . . . 3 . . . . . . . . . 9 . 8 . . 2 Electromagnetic 60 | . 60 . . . . . . . . . . . . . . . . . . . . . . . . . . . . Robot Hit Streak 29 | 3 11 9 13 10 11 9 14 10 17 12 6 6 8 13 5 4 1 8 29 6 13 4 10 9 . 18 3 11 7 Robot Miss Streak 8 | 2 8 3 5 . 6 3 2 4 4 3 2 1 3 4 1 3 2 2 4 1 3 1 3 4 . 5 1 7 . Penetration Max 1 | . . . . . . . 1 . 1 . . . . . . . . 1 1 . 1 . . 1 . 1 . . . Secondary Targets 23 | . . . . . 5 4 . 2 1 . . . . . . . . 2 9 . . . . . . . . . . Max Gunslinging Chain 2 | . . . . . 1 1 . 1 1 . . . . . . . . 1 2 . . . . . . . . . . Shots Hit Robots 1584 | 9 66 20 105 7 105 93 90 52 133 39 27 4 26 93 28 2 7 27 150 14 86 13 37 92 . 134 2 86 37 Core Hits 626 | 4 45 9 48 6 44 38 30 16 48 13 6 . 12 46 9 1 3 11 46 3 17 3 9 43 . 56 1 26 33 Critical Kills 20 | . . . 1 . . . . 1 2 . 1 . 1 . . . . 2 3 . 4 . 1 1 . 1 . 2 . Critical Parts Destroyed 33 | . . . . . . 1 . . 8 . . . . 1 . . . 3 8 . 6 . . . . 1 . 5 . Critical Strikes 95 | . 2 1 5 . . 3 1 1 10 . 1 . 1 2 1 1 . 5 16 . 11 . 5 5 . 10 . 8 6 Burn 8 | . 2 1 4 . . . 1 . . . . . . . . . . . . . . . . . . . . . . Meltdown 7 | . . . 1 . . . . . . . 1 . 1 . . . . . . . . . 1 1 . 1 . 1 . Destroy 45 | . . . . . . 1 . 1 3 . . . . 1 . . . 5 16 . 11 . . . . 1 . 6 . Blast 14 | . . . . . . . . . . . . . . 1 . 1 . . . . . . 4 3 . 5 . . . Smash 7 | . . . . . . . . . 7 . . . . . . . . . . . . . . . . . . . . Sever 8 | . . . . . . 2 . . . . . . . . 1 . . . . . . . . 1 . 3 . 1 . Impale 6 | . . . . . . . . . . . . . . . . . . . . . . . . . . . . . 6 Melee Attacks 608 | . . . . . 5 50 2 20 35 43 18 . 17 38 18 . 6 10 36 18 12 3 45 37 9 61 . 53 72 Impact 61 | . . . . . . 7 2 20 32 . . . . . . . . . . . . . . . . . . . . Slashing 459 | . . . . . 5 43 . . 3 39 18 . 17 31 18 . 6 10 36 18 12 3 45 36 9 57 . 53 . Piercing 72 | . . . . . . . . . . . . . . . . . . . . . . . . . . . . . 72 Sneak Attacks 55 | . . . . . . . . . 9 7 . . 4 7 2 . 5 . . 4 . 1 . . . 8 . 5 3 Combat Hostiles 3 | . . . . . . . . . . 2 . . . . . . . . . . . 1 . . . . . . . Follow-up Attacks 10 | . . . . . . . . . . . . . . . . . . . . . . . . . . . . . 10 Damage Inflicted 47002 | 121 1072 383 2490 132 2128 2656 1578 777 3401 1169 718 . 865 2738 1061 134 485 694 4181 435 2015 215 571 3331 . 6879 108 4076 2589 Guns 19565 | 121 871 89 897 132 1903 1237 1538 728 1474 . . . . 890 . . . 655 4181 69 1866 . 232 678 . 782 . 1222 . Cannons 12198 | . 41 266 1249 . . . . . 517 606 689 . 545 1195 562 134 . . . . 149 133 339 847 . 2542 108 2234 42 Explosions 6250 | . 148 . 262 . 225 421 . . . . . . . 516 . . . . . . . . . 1701 . 2328 . . 649 Melee 8845 | . . . . . . 998 37 49 1410 563 29 . 318 137 499 . 485 36 . 366 . 82 . 105 . 1221 . 620 1890 Ramming 120 | . 12 4 82 . . . 3 . . . . . 2 . . . . 3 . . . . . . . 6 . . 8 Kinetic 18722 | 48 . . 117 132 1903 1156 1231 728 1474 . . . . 1573 492 134 . 583 3526 69 1747 95 369 931 . 2059 . 355 . Thermal 12575 | 73 422 379 2029 . . 81 307 . 517 606 689 . 545 512 70 . . 72 655 . 268 38 202 594 . 1265 108 3101 42 Explosive 6102 | . . . 262 . 225 421 . . . . . . . 516 . . . . . . . . . 1701 . 2328 . . 649 Electromagnetic 638 | . 638 . . . . . . . . . . . . . . . . . . . . . . . . . . . . Impact 1496 | . . . . . . . 37 49 1410 . . . . . . . . . . . . . . . . . . . . Slashing 5459 | . . . . . . 998 . . . 563 29 . 318 137 499 . 485 36 . 366 . 82 . 105 . 1221 . 620 . Piercing 1890 | . . . . . . . . . . . . . . . . . . . . . . . . . . . . . 1890 Highest Corruption 40 | . 4 4 5 5 . 2 2 24 . . 2 9 9 16 16 16 16 1 1 2 6 . . . . 13 15 40 21 Average Corruption 6 | . 2 4 4 5 . 1 2 7 . . 1 7 4 5 16 16 16 1 1 1 4 . . . . 7 13 21 10 Corruption Purged 6 | . . . . . . . . . . . . . 5 . . . . . . . . . . . . 1 . . . Corruption Blocked 3 | . . . . . . . . . 3 . . . . . . . . . . . . . . . . . . . . Effects 467 | . 13 12 59 32 . 11 12 20 . . 7 3 16 47 49 29 11 1 10 12 17 . . . . 24 7 58 17 Message Errors 92 | . 3 2 15 6 . 3 1 4 . . . . 2 8 11 6 2 . 2 4 6 . . . . 5 . 10 2 Matter Fused 115 | . 3 6 16 11 . 5 3 5 . . 1 . 4 7 16 5 2 . 2 2 6 . . . . 5 2 10 4 Heat Flow Errors 47 | . . . 4 1 . 1 2 3 . . 2 1 3 5 4 4 2 1 . 3 . . . . . 3 . 8 . Energy Discharges 48 | . 1 . 6 4 . . 1 2 . . 2 . 3 5 6 2 3 . 2 2 3 . . . . 1 1 3 1 Parts Rejected 8 | . . 1 . . . . 1 1 . . . . . . . . . . . . . . . . . 1 . 2 2 Parts Fused 6 | . . . 1 . . . . . . . . . . . 1 . . . 1 . . . . . . 1 . 2 . Data Loss (minor) 66 | . 2 1 10 5 . 1 4 2 . . 1 2 1 13 4 7 . . . . 1 . . . . 3 1 6 2 Data Loss (major) 26 | . 2 . 3 4 . . . 2 . . . . 2 1 1 1 1 . 2 . . . . . . 2 2 1 2 Misfires 19 | . 1 . 3 . . . . 1 . . 1 . . 4 3 1 1 . . 1 1 . . . . . 1 1 . Alerts 11 | . 1 1 1 . . 1 . . . . . . 1 1 2 1 . . . . . . . . . 1 . . 1 Misdirections 15 | . . . . . . . . . . . . . . . . 1 . . . . . . . . . 2 . 9 3 Weapon Failures 14 | . . 1 . 1 . . . . . . . . . 3 1 1 . . 1 . . . . . . . . 6 . Overload Shots 1 | . . . . . . . . . . 1 . . . . . . . . . . . . . . . . . . . Overflow Damage 2549 | . . 12 3 . 6 120 . 3 762 171 16 . 122 74 140 17 99 11 . 98 16 8 . 49 . 229 . 287 306 Projectiles 431 | . . 12 2 . . . . . 23 2 16 . . 68 37 17 . . . . 16 8 . 11 . 90 . 129 . Explosions 267 | . . . 1 . 6 . . . . . . . . 6 . . . . . . . . . 38 . 80 . . 136 Melee 1851 | . . . . . . 120 . 3 739 169 . . 122 . 103 . 99 11 . 98 . . . . . 59 . 158 170 Knockbacks 30 | . . . 2 . . . . . 5 . . . . 1 3 1 . . . . . . 2 5 . 11 . . . Impact 7 | . . . 2 . . . . . 5 . . . . . . . . . . . . . . . . . . . . Kinetic 21 | . . . . . . . . . . . . . . 1 2 1 . . . . . . 2 5 . 10 . . . Secondary 2 | . . . . . . . . . . . . . . . 1 . . . . . . . . . . 1 . . . Self-Inflicted Damage 271 | . 40 . 49 . . 112 . . . . . . . . . . . . . . . . . . . . . . 70 Shots 8 | . 1 . 1 . . 5 . . . . . . . . . . . . . . . . . . . . . . 1 Rammed 8 | . . . . . . . 1 . . . . . . . . . . 2 . . . . . . . 2 . . 3 Targets Rammed 32 | . 4 2 17 . . . 1 . . . . . 1 . . . . 2 . . . . . . . 2 . . 3 Kicked 24 | . 4 2 17 . . . . . . . . . 1 . . . . . . . . . . . . . . . . Crushed . | . . . . . . . . . . . . . . . . . . . . . . . . . . . . . . Highest Temperature 384 | 27 162 335 193 174 101 141 176 273 60 180 209 101 223 240 161 171 64 384 333 214 370 267 332 333 . 308 255 366 322 Average Temperature 89 | 13 46 113 35 93 30 23 35 73 14 49 73 57 105 48 70 74 44 115 82 110 146 138 112 121 . 93 123 124 159 Received Heat Transfer 6498 | . 135 264 207 . 234 540 414 81 357 207 63 . 63 468 188 . . 54 759 24 204 9 154 118 . 1102 484 243 126 Effects 15 | . . . . . . . . 2 . . 1 . . . . . . . 1 . 4 . . . . 1 . 3 3 Shutdowns 2 | . . . . . . . . . . . . . . . . . . . . . 1 . . . . . . 1 . Energy Bleed 4 | . . . . . . . . . . . 1 . . . . . . . . . . . . . . . . 1 2 Interference 5 | . . . . . . . . 2 . . . . . . . . . . 1 . 1 . . . . . . . 1 Matter Decay 2 | . . . . . . . . . . . . . . . . . . . . . 2 . . . . . . . . Short Circuit 1 | . . . . . . . . . . . . . . . . . . . . . . . . . . 1 . . . Damage (minor) 1 | . . . . . . . . . . . . . . . . . . . . . . . . . . . . 1 . Siege Activations 14 | . . . . . . . . . . . . . . . . . . 1 3 . 1 . . 3 . 6 . . . Total Turns 243 | . . . . . . . . . . . . . . . . . . 3 58 . 50 . . 17 . 115 . . . Longest Duration 50 | . . . . . . . . . . . . . . . . . . 3 26 . 50 . . 10 . 46 . . . Martial Activations . | . . . . . . . . . . . . . . . . . . . . . . . . . . . . . . Shielding Activations . | . . . . . . . . . . . . . . . . . . . . . . . . . . . . . . Robots Disrupted . | . . . . . . . . . . . . . . . . . . . . . . . . . . . . . . Combat Hostiles . | . . . . . . . . . . . . . . . . . . . . . . . . . . . . . . Robots Corrupted 7 | . . . . . . . . 1 6 . . . . . . . . . . . . . . . . . . . . Combat Hostiles 2 | . . . . . . . . 1 1 . . . . . . . . . . . . . . . . . . . . Parts Fried 8 | . 2 . . . . . . . 6 . . . . . . . . . . . . . . . . . . . . Impact Corruptions 20 | . . . . . . . . 1 19 . . . . . . . . . . . . . . . . . . . . Robots Melted 10 | . . . 3 . . . . . . . 1 . 1 . . . . . . . . . 1 1 . 1 . 2 . Combat Hostiles 10 | . . . 3 . . . . . . . 1 . 1 . . . . . . . . . 1 1 . 1 . 2 . Parts Melted 58 | . 3 1 12 . 3 . 1 . 1 3 3 . 5 1 . . . . . . 2 . 3 5 . 3 . 12 . Heat Transferred 17249 | 222 1014 864 4144 . . 185 777 . 703 795 888 . 740 703 100 . . 74 851 . 422 50 335 666 . 1052 74 2553 37 Parts Sabotaged 5 | . . . . . . . . . . . . . . . . . . . . . . . . 4 . 1 . . . Parts Stolen . | . . . . . . . . . . . . . . . . . . . . . . . . . . . . . . Parts Stripped . | . . . . . . . . . . . . . . . . . . . . . . . . . . . . . . Power Chain Reactions 3 | . 3 . . . . . . . . . . . . . . . . . . . . . . . . . . . . Alert | -11 -10 -10 -9 -9 -8 -8 -8 -8 -7 -7 -6 -6 -6 -6 -6 -6 -6 -5 -5 -5 -5 -4 -4 -4 -4 -3 -3 -2 -1 ------- Run | Yrd Mat Min Mat Min Mat Gar Mat Gar Fac Gar Fac Was Fac Gar Ext Cet Arc Fac Gar Fac Gar Fac Gar Arm Lab Res Gar Res Acc Maximum Alert Level 5 | . 1 . 1 . 1 3 2 1 1 3 3 . . 2 1 . . 2 5 4 3 2 4 5 . 3 . . . Low Security (%) 51 | 100 64 100 82 100 93 . 41 36 97 8 . 100 100 25 56 100 100 52 . . . 8 3 22 . 43 100 100 100 Level 1 16 | . 35 . 17 . 6 28 53 63 2 23 . . . 60 43 . . 23 . . . 32 11 13 . 13 . . . Level 2 15 | . . . . . . 42 5 . . 30 75 . . 13 . . . 23 18 . . 58 29 33 . 39 . . . Level 3 9 | . . . . . . 28 . . . 36 24 . . . . . . . 14 57 100 . 44 11 . 3 . . . Level 4 4 | . . . . . . . . . . . . . . . . . . . 37 42 . . 11 14 . . . . . Level 5 1 | . . . . . . . . . . . . . . . . . . . 29 . . . . 4 . . . . . High Security . | . . . . . . . . . . . . . . . . . . . . . . . . . . . . . . Max Security . | . . . . . . . . . . . . . . . . . . . . . . . . . . . . . . Peak Influence 1992 | 5 303 174 280 73 341 831 405 385 211 961 751 186 102 573 301 170 121 638 1992 1210 1080 568 1130 1653 . 722 159 101 101 Initial 1045 | . . 104 20 33 . 213 404 38 201 109 504 186 102 17 301 99 . 14 436 1045 749 567 156 592 . . 145 83 59 Average 346 | 1 118 108 94 11 140 538 192 205 104 534 642 169 39 280 181 56 77 205 1251 1094 966 380 733 603 . 354 154 16 37 Influence Increases 20258 | 15 596 205 969 151 927 718 446 387 696 1012 723 . 295 1122 525 309 201 959 1786 493 541 117 1154 3030 . 1651 14 584 632 Destroy 0b10 Robot/C 9109 | . 400 120 620 120 560 360 220 220 400 480 320 . 160 420 180 140 80 440 780 200 285 45 351 1104 . 576 12 228 288 Destroy 0b10 Robot/NC 474 | 15 35 . 60 . 55 10 30 . 45 10 10 . 15 . 20 5 20 10 . 25 . . 4 12 . 72 . 12 9 Destroy Leader 1554 | . 78 30 188 20 126 30 86 20 122 30 70 . 40 50 10 . . 70 40 42 30 8 40 214 . 124 . 50 36 Allied During Kill 3815 | . . 6 19 11 71 15 . . . 191 138 . 8 18 203 145 100 133 304 138 52 30 384 1275 . 574 . . . Trap Triggered on 0b10 12 | . . . . . . . . . . . . . . . . . . . . . . . . 12 . . . . . Successful Hack 526 | . 41 . 44 . 63 28 45 10 53 . 14 . 41 12 6 . . 33 15 . 5 20 6 18 . 42 . 21 9 Select Force Hacks 48 | . . . . . . . . . . . . . . . . . . 30 . . . . . . . 18 . . . Disable Machine 732 | . 30 15 . . 30 . 45 . 30 . 105 . 15 60 60 15 . 45 15 30 . 12 . 135 . 18 . 36 36 Anti-Garrison Action 1695 | . . . . . . 100 . 100 . 200 . . . 400 . . . 150 400 . 88 . 257 . . . . . . Destroy Structure 1564 | . 12 4 23 . 22 85 5 37 16 86 66 . 16 87 16 4 1 48 172 58 36 2 112 260 . 182 2 138 74 Partial Spotted 30 | . . . 15 . . . . . 15 . . . . . . . . . . . . . . . . . . . . Lose Combat Pursuer 699 | . . 30 . . . 90 15 . 15 15 . . . 75 30 . . . 60 . 45 . . . . 45 . 99 180 Influence Decreases 20216 | 15 327 421 937 236 598 216 1218 61 924 208 1151 387 416 573 921 487 160 377 417 1415 531 973 248 2507 1653 1457 59 634 689 Entered New Map 6663 | . . 165 33 52 . 116 427 21 184 48 457 347 44 8 273 79 . 27 187 947 321 513 68 538 1653 . 49 66 40 Time Decay 7289 | 15 307 246 598 184 534 . 443 . 630 . 434 40 297 . 458 228 120 178 . 278 . 310 . 726 . 502 . 404 357 Lost Part 1431 | . 20 10 10 . 4 50 50 40 110 40 50 . 21 190 50 . . . 60 10 40 . 10 . . 200 10 164 292 Lost Ally 2679 | . . . 40 . 60 50 . . . 120 60 . 54 100 140 180 40 172 170 180 170 . 170 593 . 380 . . . Purge Threat 2154 | . . . 256 . . . 298 . . . 150 . . 275 . . . . . . . 150 . 650 . 375 . . . Squads Dispatched 98 | . 3 . 3 1 5 . . . 9 . 5 . 7 . . . . 10 . 7 . 4 . 20 . 13 . 8 3 Investigation 24 | . 1 . 1 1 1 . . . 3 . 1 . 3 . . . . 5 . . . 1 . 3 . 2 . 1 1 Extermination 27 | . . . . . . . . . 4 . 2 . 1 . . . . 1 . 1 . 1 . 6 . 4 . 5 2 Reinforcement 30 | . 2 . 2 . 3 . . . 2 . 2 . 2 . . . . 1 . 3 . . . 8 . 3 . 2 . Assault 12 | . . . . . . . . . . . . . . . . . . 2 . 3 . . . 3 . 4 . . . Garrison 5 | . . . . . 1 . . . . . . . 1 . . . . 1 . . . 2 . . . . . . . Intercept . | . . . . . . . . . . . . . . . . . . . . . . . . . . . . . . Searches Triggered . | . . . . . . . . . . . . . . . . . . . . . . . . . . . . . . Construction Impeded . | . . . . . . . . . . . . . . . . . . . . . . . . . . . . . . Haulers Reinforced 6 | . . . . . . . . . 1 . 1 . . . . . . 1 . . . . . . . 3 . . . Active Scanning Responses . | . . . . . . . . . . . . . . . . . . . . . . . . . . . . . . Cargo Convoy Interrupts 1 | . . . . . . . . . . . . . . . . . . . . . . . . . . . . 1 . Stealth | -11 -10 -10 -9 -9 -8 -8 -8 -8 -7 -7 -6 -6 -6 -6 -6 -6 -6 -5 -5 -5 -5 -4 -4 -4 -4 -3 -3 -2 -1 --------- Run | Yrd Mat Min Mat Min Mat Gar Mat Gar Fac Gar Fac Was Fac Gar Ext Cet Arc Fac Gar Fac Gar Fac Gar Arm Lab Res Gar Res Acc Distress Signals 24 | . 2 . 3 . 3 . 3 . 1 . . . . . . 2 . 2 . . . . . 2 . 2 . 2 2 Communications Jammed 1752 | . . . . . . . 63 . 9 23 61 . 1 . 16 3 . 1 . 35 . 4 . 543 . 993 . . . Distress Signals 1751 | . . . . . . . 63 . 9 23 61 . 1 . 16 3 . 1 . 34 . 4 . 543 . 993 . . . Times Spotted 805 | . 33 7 41 6 38 25 21 12 27 23 20 4 11 27 16 5 1 15 37 11 30 5 39 93 . 95 23 83 57 Peak Tracking Total 11 | . 4 2 5 3 5 6 5 5 3 5 4 3 4 6 3 3 . 5 8 5 8 1 4 9 . 9 11 10 11 Tactical Retreats 64 | . . 2 . . . 6 1 . 1 1 . . . 5 2 . . . 2 . 1 . . . . 9 6 17 11 Traps | -11 -10 -10 -9 -9 -8 -8 -8 -8 -7 -7 -6 -6 -6 -6 -6 -6 -6 -5 -5 -5 -5 -4 -4 -4 -4 -3 -3 -2 -1 ------- Run | Yrd Mat Min Mat Min Mat Gar Mat Gar Fac Gar Fac Was Fac Gar Ext Cet Arc Fac Gar Fac Gar Fac Gar Arm Lab Res Gar Res Acc Traps Triggered 24 | . 4 . 3 . 1 . 1 1 . 2 2 . . 2 . . . . . . . . 1 . . 2 1 3 1 Indirectly . | . . . . . . . . . . . . . . . . . . . . . . . . . . . . . . Trap Hack Attempts 47 | . . . . . . 13 . . . . . . . . . . . . . . . . . 34 . . . . . Triggered . | . . . . . . . . . . . . . . . . . . . . . . . . . . . . . . Disarmed 2 | . . . . . . 1 . . . . . . . . . . . . . . . . . 1 . . . . . Reprogrammed 5 | . . . . . . 1 . . . . . . . . . . . . . . . . . 4 . . . . . Reused 2 | . . . . . . . . . . . . . . . . . . . . . . . . 2 . . . . . Traps Extracted . | . . . . . . . . . . . . . . . . . . . . . . . . . . . . . . Installed . | . . . . . . . . . . . . . . . . . . . . . . . . . . . . . . Triggered 2 | . . . . . . . . . . . . . . . . . . . . . . . . 2 . . . . . Machines | -11 -10 -10 -9 -9 -8 -8 -8 -8 -7 -7 -6 -6 -6 -6 -6 -6 -6 -5 -5 -5 -5 -4 -4 -4 -4 -3 -3 -2 -1 ---------- Run | Yrd Mat Min Mat Min Mat Gar Mat Gar Fac Gar Fac Was Fac Gar Ext Cet Arc Fac Gar Fac Gar Fac Gar Arm Lab Res Gar Res Acc Machines Disabled 86 | . 2 1 . . 2 3 3 2 2 2 7 . 1 8 4 1 . 4 8 2 2 1 6 15 . 2 . 4 4 Max in Single Turn 2 | . 2 1 . . 1 1 1 1 1 1 1 . . 1 1 1 . 1 1 1 1 1 1 1 . . . 1 1 Garrison Access 7 | . . . . . . . . . 1 . 1 . . . . . . 1 . . . . . . . 1 . . 3 Garrison Relay 21 | . . . . . . 2 . 1 . 3 . . . 3 . . . . 5 . 2 . 5 . . . . . . Machines Repaired . | . . . . . . . . . . . . . . . . . . . . . . . . . . . . . . Machines Dismantled 4 | . . . . . . . . . . . . . . . 3 1 . . . . . . . . . . . . . Machines Sabotaged . | . . . . . . . . . . . . . . . . . . . . . . . . . . . . . . Overloaded Fab Kills . | . . . . . . . . . . . . . . . . . . . . . . . . . . . . . . Hacking | -11 -10 -10 -9 -9 -8 -8 -8 -8 -7 -7 -6 -6 -6 -6 -6 -6 -6 -5 -5 -5 -5 -4 -4 -4 -4 -3 -3 -2 -1 --------- Run | Yrd Mat Min Mat Min Mat Gar Mat Gar Fac Gar Fac Was Fac Gar Ext Cet Arc Fac Gar Fac Gar Fac Gar Arm Lab Res Gar Res Acc Machines Accessed 138 | . 7 . 14 1 12 2 10 1 17 2 3 . 4 3 5 . . 6 3 1 1 5 2 13 . 15 . 4 7 Terminals 88 | . 7 . 9 . 9 2 7 1 11 2 . . 1 3 5 . . . 3 . 1 2 2 7 . 9 . 4 3 Fabricators 16 | . . . . . . . . . 3 . 2 . 1 . . . . 2 . . . . . 6 . 2 . . . Repair Stations 11 | . . . 2 . 2 . 1 . 1 . . . 1 . . . . 1 . . . 1 . . . 1 . . 1 Recycling Units 2 | . . . 1 . . . . . . . . . . . . . . 1 . . . . . . . . . . . Scanalyzers 5 | . . . 2 . . . 1 . . . . . . . . . . . . . . 1 . . . 1 . . . Garrison Access 15 | . . . . . 1 . 1 . 2 . 1 . 1 . . . . 2 . 1 . 1 . . . 2 . . 3 Total Hacks 400 | . 28 . 61 1 35 4 35 3 52 5 6 . 23 6 10 . . 18 7 1 1 14 5 32 . 29 . 12 12 Successful 237 | . 18 . 49 1 26 3 21 1 30 1 4 . 17 2 1 . . 10 2 1 1 6 2 20 . 11 . 3 7 Failed 159 | . 9 . 11 . 9 1 13 2 21 4 2 . 6 4 9 . . 8 5 . . 8 3 12 . 18 . 9 5 Catastrophic 25 | . . . . . 1 . 1 1 1 2 . . 1 . 2 . . 1 2 . . 2 1 3 . 3 . 3 1 Database Lockouts 4 | . 1 . 1 . . . 1 . 1 . . . . . . . . . . . . . . . . . . . . Manual 213 | . 23 . 29 . 27 1 25 1 33 1 2 . 12 . 1 1 . 10 1 . . 5 3 13 . 18 . 5 2 Terminals 261 | . 28 . 35 . 27 4 28 3 33 5 . . 8 6 10 . . . 7 . 1 6 5 19 . 21 . 12 3 Fabricators 47 | . . . . . . . . . 13 . 5 . 7 . . . . 6 . . . . . 13 . 3 . . . Repair Stations 33 | . . . 7 . 5 . 3 . 3 . . . 6 . . . . 2 . . . 3 . . . 2 . . 2 Recycling Units 5 | . . . 1 . . . . . . . . . . . . . . 4 . . . . . . . . . . . Scanalyzers 24 | . . . 18 . . . 2 . . . . . . . . . . . . . . 3 . . . 1 . . . Garrison Access 29 | . . . . . 3 . 2 . 3 . 1 . 2 . . . . 6 . 1 . 2 . . . 2 . . 7 Terminal Hacks 64 | . 6 . 14 1 6 3 5 1 8 1 . . 2 2 1 . . . 2 . 1 . 2 5 . 2 . 1 1 Record 1 | . . . . . . . . . . . . . . . . . . . . . . . . . . . . . 1 Part Schematic 1 | . . . . . . . . . . . . . . . . . . . . . . . . 1 . . . . . Robot Schematic 3 | . . . 1 . . . . . 1 . . . . . . . . . . . . . . 1 . . . . . Robot Analysis 7 | . 1 . 3 . 2 . 1 . . . . . . . . . . . . . . . . . . . . . . Prototype ID Bank 2 | . . . . . . . . . 1 . . . . . . . . . . . . . . . . . . 1 . Open Door 6 | . . . . 1 . . . . . . . . . 1 1 . . . 1 . 1 . . 1 . . . . . Branch Access Points 1 | . . . 1 . . . . . . . . . . . . . . . . . . . . . . . . . . Emergency Access Points 4 | . . . . . . . . . . 1 . . . 1 . . . . 1 . . . 1 . . . . . . Machine Index 1 | . . . . . . . 1 . . . . . . . . . . . . . . . . . . . . . . Terminal Index 5 | . 1 . 1 . 1 . . . 1 . . . 1 . . . . . . . . . . . . . . . . Fabricator Index 2 | . . . . . . . . . 1 . . . . . . . . . . . . . . . . 1 . . . Unreport Threat 5 | . . . 3 . . . 1 . . . . . . . . . . . . . . . . 1 . . . . . Locate Traps 2 | . . . 1 . . . . . 1 . . . . . . . . . . . . . . . . . . . . Surveillance Status 1 | . 1 . . . . . . . . . . . . . . . . . . . . . . . . . . . . Extermination Status 1 | . . . . . . . . . 1 . . . . . . . . . . . . . . . . . . . . Hauler Manifests 2 | . . . 1 . . . 1 . . . . . . . . . . . . . . . . . . . . . . Registered Components 2 | . 1 . . . 1 . . . . . . . . . . . . . . . . . . . . . . . . Registered Prototypes 1 | . . . . . . . 1 . . . . . . . . . . . . . . . . . . . . . . Zone Layout 12 | . 2 . 3 . 2 . . . 2 . . . 1 . . . . . . . . . . 1 . 1 . . . Garrison Registry 2 | . . . . . . 2 . . . . . . . . . . . . . . . . . . . . . . . Patrol Navigation 3 | . . . . . . 1 . 1 . . . . . . . . . . . . . . 1 . . . . . . Fabricator Hacks 27 | . . . . . . . . . 5 . 2 . 4 . . . . 4 . . . . . 11 . 1 . . . Network Status 2 | . . . . . . . . . 1 . . . . . . . . . . . . . . . . 1 . . . Load Schematic 14 | . . . . . . . . . 3 . 1 . 2 . . . . 2 . . . . . 6 . . . . . Build 11 | . . . . . . . . . 1 . 1 . 2 . . . . 2 . . . . . 5 . . . . . Repair Station Hacks 20 | . . . 5 . 4 . 2 . 1 . . . 4 . . . . . . . . 2 . . . 2 . . . Scan Component 11 | . . . 3 . 2 . 1 . 1 . . . 2 . . . . . . . . 1 . . . 1 . . . Repair 9 | . . . 2 . 2 . 1 . . . . . 2 . . . . . . . . 1 . . . 1 . . . Recycling Unit Hacks 1 | . . . 1 . . . . . . . . . . . . . . . . . . . . . . . . . . Retrieve Matter 1 | . . . 1 . . . . . . . . . . . . . . . . . . . . . . . . . . Scanalyzer 21 | . . . 18 . . . 2 . . . . . . . . . . . . . . 1 . . . . . . . Insert Component 11 | . . . 9 . . . 1 . . . . . . . . . . . . . . 1 . . . . . . . Analyze 10 | . . . 9 . . . 1 . . . . . . . . . . . . . . . . . . . . . . Garrison Access Hacks 18 | . . . . . 1 . 1 . 2 . 1 . 1 . . . . 2 . 1 . 1 . . . 2 . . 6 Unlock Access 9 | . . . . . 1 . 1 . 1 . . . 1 . . . . 2 . 1 . 1 . . . 1 . . . Seal Access 6 | . . . . . . . . . 1 . 1 . . . . . . . . . . . . . . 1 . . 3 Coupler Status 3 | . . . . . . . . . . . . . . . . . . . . . . . . . . . . . 3 Unauthorized Hacks 86 | . 12 . 11 . 15 . 11 . 14 . 1 . 6 . . . . 4 . . . 2 . 4 . 4 . 2 . Terminals 68 | . 12 . 10 . 14 . 10 . 11 . . . 3 . . . . . . . . 1 . 3 . 2 . 2 . Track 1 | . . . . . 1 . . . . . . . . . . . . . . . . . . . . . . . . Assimilate 4 | . . . . . 2 . 1 . . . . . . . . . . . . . . . . . . 1 . . . Botnet 29 | . 4 . 5 . 5 . 3 . 4 . . . 1 . . . . . . . . 1 . 3 . 1 . 2 . Disrupt 1 | . 1 . . . . . . . . . . . . . . . . . . . . . . . . . . . . Operators 5 | . 1 . . . 1 . 1 . 1 . . . 1 . . . . . . . . . . . . . . . . Skim 28 | . 6 . 5 . 5 . 5 . 6 . . . 1 . . . . . . . . . . . . . . . . Fabricators 5 | . . . . . . . . . 1 . 1 . 1 . . . . . . . . . . 1 . 1 . . . Prioritize 1 | . . . . . . . . . . . . . 1 . . . . . . . . . . . . . . . . Liberate 1 | . . . . . . . . . . . . . . . . . . . . . . . . . . 1 . . . Recompile 3 | . . . . . . . . . 1 . 1 . . . . . . . . . . . . 1 . . . . . Repair Stations 5 | . . . 1 . . . 1 . 1 . . . 1 . . . . 1 . . . . . . . . . . . Mechanics 4 | . . . . . . . 1 . 1 . . . 1 . . . . 1 . . . . . . . . . . . Patch 1 | . . . 1 . . . . . . . . . . . . . . . . . . . . . . . . . . Recycling Units 1 | . . . . . . . . . . . . . . . . . . 1 . . . . . . . . . . . Tunnel 1 | . . . . . . . . . . . . . . . . . . 1 . . . . . . . . . . . Scanalyzers 1 | . . . . . . . . . . . . . . . . . . . . . . . . . . 1 . . . Extract 1 | . . . . . . . . . . . . . . . . . . . . . . . . . . 1 . . . Garrison Access 6 | . . . . . 1 . . . 1 . . . 1 . . . . 2 . . . 1 . . . . . . . Reprogram 6 | . . . . . 1 . . . 1 . . . 1 . . . . 2 . . . 1 . . . . . . . Data Cores Recovered 2 | . . . . . . . . . 1 . 1 . . . . . . . . . . . . . . . . . . Used . | . . . . . . . . . . . . . . . . . . . . . . . . . . . . . . Hacking Detections 112 | . 6 . 12 . 11 1 9 1 15 2 1 . 4 2 4 . . 4 3 1 . 5 2 7 . 12 . 4 6 Full Trace Events 12 | . . . . . . . . 1 1 . . . 2 1 . . . 2 1 . . . . 2 . 1 . . 1 Feedback Events 1 | . . . . . . . . 1 . . . . . . . . . . . . . . . . . . . . . Corruption 1 | . . . . . . . . 1 . . . . . . . . . . . . . . . . . . . . . Feedback Blocked 1 | . . . . . . . . . . . . . . . . . . 1 . . . . . . . . . . . Robot Schematics Acquired 3 | . . . 1 . . . . . 1 . . . . . . . . . . . . . . 1 . . . . . Robots Built 13 | . . . . . . . . . . . . . 3 . . . . 2 . . . . . 8 . . . . . Authchips 4 | . . . . . . . . . . . . . 1 . . . . . . . . . . 3 . . . . . Time 1033 | . . . . . . . . . . . 67 . 98 . . . . 215 . . . . . 653 . . . . . Total Robot Build Rating 68 | . . . . . . . . . . . . . 7 . . . . 5 . . . . . 56 . . . . . Part Schematics Acquired 11 | . . . 8 . . . 1 . . . . . . . . . . . . . . . . 1 . 1 . . . Parts Built 2 | . . . . . . . . . 2 . . . . . . . . . . . . . . . . . . . . Authchips 1 | . . . . . . . . . 1 . . . . . . . . . . . . . . . . . . . . Time 73 | . . . . . . . . . 73 . . . . . . . . . . . . . . . . . . . . Total Part Build Rating 6 | . . . . . . . . . 6 . . . . . . . . . . . . . . . . . . . . Parts Repaired 8 | . . . 2 . 2 . . . . . . . 2 . . . . . . . . 1 . . . 1 . . . Time 450 | . . . 102 . 56 . 44 . . . . . 140 . . . . . . . . 54 . . . 54 . . . Parts Recycled . | . . . . . . . . . . . . . . . . . . . . . . . . . . . . . . Recycled Matter . | . . . . . . . . . . . . . . . . . . . . . . . . . . . . . . Retrieved Matter 306 | . . . 306 . . . . . . . . . . . . . . . . . . . . . . . . . . Retrieved Components . | . . . . . . . . . . . . . . . . . . . . . . . . . . . . . . Parts Scanalyzed 10 | . . . 8 . . . 1 . . . . . . . . . . . . . . 1 . . . . . . . Part Schematics Acquired 9 | . . . 8 . . . 1 . . . . . . . . . . . . . . . . . . . . . . Parts Damaged . | . . . . . . . . . . . . . . . . . . . . . . . . . . . . . . Bothacking | -11 -10 -10 -9 -9 -8 -8 -8 -8 -7 -7 -6 -6 -6 -6 -6 -6 -6 -5 -5 -5 -5 -4 -4 -4 -4 -3 -3 -2 -1 ------------ Run | Yrd Mat Min Mat Min Mat Gar Mat Gar Fac Gar Fac Was Fac Gar Ext Cet Arc Fac Gar Fac Gar Fac Gar Arm Lab Res Gar Res Acc Used RIF Installer 10 | . . . . . . 2 . 1 . 2 . . . 1 . . . . 1 . 1 . 1 . . . 1 . . Coupler Efficiency 1 | . . . . . . . . . . 1 . . . . . . . . . . . . . . . . . . . Threat Obfuscator 2 | . . . . . . . . . . . . . . . . . . . . . 1 . 1 . . . . . . Signal Jammer 1 | . . . . . . 1 . . . . . . . . . . . . . . . . . . . . . . . Zone Cloak 2 | . . . . . . . . . . . . . . 1 . . . . 1 . . . . . . . . . . Watcher Feeds 1 | . . . . . . . . . . 1 . . . . . . . . . . . . . . . . . . . Structural Interface 1 | . . . . . . . . . . . . . . . . . . . . . . . . . . . 1 . . Program Shield 1 | . . . . . . . . 1 . . . . . . . . . . . . . . . . . . . . . Robots Hacked 100 | . . . . . . . 1 . . 6 1 5 1 4 6 . 2 2 3 4 12 6 15 25 . 7 . . . Non-combat 19 | . . . . . . . 1 . . . 1 . 1 1 . . 2 1 . 1 . 2 . 6 . 3 . . . Combat 81 | . . . . . . . . . . 6 . 5 . 3 6 . . 1 3 3 12 4 15 19 . 4 . . . Robot Hacks Applied 120 | . . . . . . . 1 . . 7 2 5 1 7 6 . 2 2 3 4 13 8 15 33 . 11 . . . parse_system 4 | . . . . . . . . . . 1 . 1 . . . . . . . . . . . 2 . . . . . deconstruct_bot 1 | . . . . . . . . . . . . . . . . . . . . . . . . 1 . . . . . purge_threat 13 | . . . . . . . 1 . . . 1 . . 2 . . . . . . . 1 . 5 . 3 . . . find_terminals 1 | . . . . . . . . . . . . . . 1 . . . . . . . . . . . . . . . block_reporting 3 | . . . . . . . . . . . 1 . . . . . . . . . . 1 . . . 1 . . . map_route 1 | . . . . . . . . . . . . . . . . . . . . . . . . 1 . . . . . ignore_targets 4 | . . . . . . . . . . . . 4 . . . . . . . . . . . . . . . . . scatter_targeting 1 | . . . . . . . . . . . . . . . 1 . . . . . . . . . . . . . . spike_heat 3 | . . . . . . . . . . 1 . . . . 1 . . . . . 1 . . . . . . . . overload_power 1 | . . . . . . . . . . . . . . . . . . . . . . . . 1 . . . . . amplify_resonance 4 | . . . . . . . . . . . . . . . . . . . 1 . 1 . . . . 2 . . . reboot_system 5 | . . . . . . . . . . 1 . . . . . . . . . . . 1 2 1 . . . . . overwrite_iff 6 | . . . . . . . . . . 1 . . . 1 . . . . . . . . 2 1 . 1 . . . streamctrl_high 1 | . . . . . . . . . . . . . . . . . . . . . 1 . . . . . . . . formatsys_low 14 | . . . . . . . . . . . . . 1 1 . . 2 1 . 1 . 2 . 5 . 1 . . . formatsys_high 58 | . . . . . . . . . . 3 . . . 2 4 . . 1 2 3 10 3 11 16 . 3 . . . Relay Couplers Released 91 | . . . . . . 9 . 3 . 16 . . . 11 . . . 2 20 . 9 . 21 . . . . . . Machine Destruction 87 | . . . . . . 9 . 3 . 12 . . . 11 . . . 2 20 . 9 . 21 . . . . . . Programmers 4 | . . . . . . . . . . 4 . . . . . . . . . . . . . . . . . . . Attached 45 | . . . . . . . 1 1 . 4 1 . 1 4 2 . . . 5 1 7 . 6 9 . 3 . . . Fabnet Peak Effective % . | . . . . . . . . . . . . . . . . . . . . . . . . . . . . . . Robots Rewired 45 | . . . . . . . . . . 9 . . . 3 15 . . . 8 . 1 . 3 6 . . . . . Allies Hacked 3 | . . . . . . . . . . . . . . . . . . . . . 2 . . . . 1 . . . Hacks Repelled 2 | . . . . . . . . . . . . . . . . . . . . . 1 . . 1 . . . . . Allies | -11 -10 -10 -9 -9 -8 -8 -8 -8 -7 -7 -6 -6 -6 -6 -6 -6 -6 -5 -5 -5 -5 -4 -4 -4 -4 -3 -3 -2 -1 -------- Run | Yrd Mat Min Mat Min Mat Gar Mat Gar Fac Gar Fac Was Fac Gar Ext Cet Arc Fac Gar Fac Gar Fac Gar Arm Lab Res Gar Res Acc Total Allies 178 | . . 2 . 3 3 . 1 . 2 13 . . 7 7 27 5 2 10 12 4 12 7 16 36 . 9 . . . Largest Group 23 | . . 2 2 3 3 3 1 . 2 10 8 . 4 4 21 21 14 13 9 9 5 10 16 23 17 20 . . . Highest-Rated Group 1143 | . . 41 41 40 57 57 10 . 86 233 207 . 101 139 750 998 735 653 513 513 139 427 682 1143 838 982 . . . Highest-Rated Ally 159 | . . 31 31 16 24 24 10 . 43 43 32 . 29 46 159 159 159 96 148 142 49 49 58 116 116 116 . . . Total Orders 39 | . . . . . . . . . . . . . 1 . . 7 2 3 4 . 2 3 . 14 . 3 . . . STAY 5 | . . . . . . . . . . . . . . . . . . 1 . . . 1 . 3 . . . . . ROAM 5 | . . . . . . . . . . . . . . . . 2 1 . 2 . . . . . . . . . . FOLLOW 12 | . . . . . . . . . . . . . . . . 5 1 . 2 . . 1 . 3 . . . . . AID 16 | . . . . . . . . . . . . . 1 . . . . 1 . . 2 1 . 8 . 3 . . . DROP 1 | . . . . . . . . . . . . . . . . . . 1 . . . . . . . . . . . Ally Attacks 1381 | . . 3 11 . 72 8 . . . 93 71 . 31 32 42 68 17 99 96 71 51 13 118 316 . 169 . . . Total Damage 43875 | . . 20 104 . 726 208 . . . 2259 1962 . 494 672 1252 2213 517 4428 2259 1492 872 299 3342 14323 . 6433 . . . Kills 263 | . . 1 1 . 12 1 . . . 14 17 . 2 4 6 8 4 20 14 13 5 . 18 79 . 44 . . . Allies Corrupted 13 | . . . . . . . . . . 1 . . . 1 . . . . . 1 . . . 7 . 3 . . . Allies Melted 2 | . . . . . . . . . . . . . . . 1 . . . . . . . . . . 1 . . . Intel | -11 -10 -10 -9 -9 -8 -8 -8 -8 -7 -7 -6 -6 -6 -6 -6 -6 -6 -5 -5 -5 -5 -4 -4 -4 -4 -3 -3 -2 -1 ------- Run | Yrd Mat Min Mat Min Mat Gar Mat Gar Fac Gar Fac Was Fac Gar Ext Cet Arc Fac Gar Fac Gar Fac Gar Arm Lab Res Gar Res Acc Active Infowar (turns) 10609 | . . . . . . . . . . . 270 84 351 85 . . . . . 264 5 497 776 3245 68 1969 261 1962 772 Optics 1341 | . . . . . . . . . . . . . . . . . . . . . . . . . . 1341 . . . Sensors 7555 | . . . . . . . . . . . 270 84 351 85 . . . . . 264 5 497 776 3245 68 1236 . . 674 Terrain 2276 | . . . . . . . . . . . . . . . . . . . . . . . . . . 163 261 1549 303 Structural 1264 | . . . . . . . . . . . . . . . . . . . . . . . . . . 137 48 1079 . Seismic 4 | . . . . . . . . . . . . . . . . . . . . . . . . . . . . 4 . T.N.C. 517 | . . . . . . . . . . . . . . . . . . . . . . . . . . . . 517 . Cloaking 1251 | . . . . . . . . . . . . . . . . . . . . . . . . . . 521 137 593 . ECM 2643 | . . . . . . . . . . . . . . . . . . . . . . . . . . 537 230 1876 . Robot Analysis Total 7 | . 1 . 3 . 2 . 1 . . . . . . . . . . . . . . . . . . . . . . Derelict Logs Recovered 3 | . . 1 . 2 . . . . . . . . . . . . . . . . . . . . . . . . . Drone Launches . | . . . . . . . . . . . . . . . . . . . . . . . . . . . . . . Drone Recoveries . | . . . . . . . . . . . . . . . . . . . . . . . . . . . . . . Exploration | -11 -10 -10 -9 -9 -8 -8 -8 -8 -7 -7 -6 -6 -6 -6 -6 -6 -6 -5 -5 -5 -5 -4 -4 -4 -4 -3 -3 -2 -1 ------------- Run | Yrd Mat Min Mat Min Mat Gar Mat Gar Fac Gar Fac Was Fac Gar Ext Cet Arc Fac Gar Fac Gar Fac Gar Arm Lab Res Gar Res Acc Turns Passed 34603 | 88 1204 521 3083 1246 1519 849 1277 677 2180 1225 1060 84 712 1869 1153 645 253 753 1704 607 767 683 1479 3508 68 2059 273 2068 989 Spaces Moved 18730 | 49 819 301 1513 631 739 365 540 212 1318 755 722 64 322 860 425 317 130 394 773 319 284 331 741 1812 29 1247 267 1346 1105 Core 419 | 9 . . . . . . . . . . . . . . . . . . . . . . . . . 26 . 245 139 Treads 8543 | . . . . . 425 365 540 212 39 . . . . 548 425 317 130 394 773 319 284 331 741 1812 29 817 42 . . Legs 8071 | 40 819 301 1513 631 314 . . . 1279 755 722 64 322 135 . . . . . . . . . . . . 80 1096 . Wheels . | . . . . . . . . . . . . . . . . . . . . . . . . . . . . . . Hover 1697 | . . . . . . . . . . . . . . 177 . . . . . . . . . . . 404 145 5 966 Flight . | . . . . . . . . . . . . . . . . . . . . . . . . . . . . . . Fastest Speed 22 | 50 120 120 120 190 152 152 160 237 100 120 120 120 120 112 160 160 160 160 160 165 160 160 160 160 160 22 30 50 46 Average Speed 142 | 107 120 120 172 193 173 157 191 237 121 127 124 120 121 170 165 160 160 160 164 165 160 164 163 160 160 117 85 108 52 Slowest Speed 270 | 120 120 120 190 195 240 160 240 237 237 193 193 120 122 270 240 240 160 160 165 165 165 165 165 160 160 240 145 200 70 Overloaded Moves 15 | . . . . . . . . . . . . . . . . . . . . . . . . . . 4 11 . . Propulsion Burnouts . | . . . . . . . . . . . . . . . . . . . . . . . . . . . . . . Robots Hopped . | . . . . . . . . . . . . . . . . . . . . . . . . . . . . . . Potential Cave-ins 8 | . . . . . . . . . . . . . . . 8 . . . . . . . . . . . . . . Cave-ins Triggered 1 | . . . . . . . . . . . . . . . . . . . . . . . . . . . . . 1 Exploration Rate (%) 52 | 4 99 48 97 97 75 50 57 34 46 72 21 75 11 79 69 76 87 12 81 23 40 11 83 90 6 42 42 31 30 Regions Visited 29 Branch Regions 7 Pre-discovered Areas 13 | . . 1 3 1 4 . 1 . 2 . . . . . . . . 1 . . . . . . . . . . . Known Exits Taken 13 | . . . 1 1 1 . 1 . 1 . . . 1 . . 1 . 1 . 1 . 1 . 1 1 1 . . . Unknown Exits Taken 6 | 1 1 1 . . . . . . . . . . . . 1 . 1 . . . . . . . . . . 1 . Scrap Searched 3 | . . . . 3 . . . . . . . . . . . . . . . . . . . . . . . . . Spaces Dug 257 | . . 3 . . 4 5 1 12 13 9 14 . 12 . 25 . . 5 14 13 3 1 12 21 8 10 . 53 19 Terrain Destroyed 645 | . 11 4 22 . 29 75 3 12 15 10 15 . 15 10 28 3 1 13 22 13 5 1 13 118 8 85 1 71 42 Melee 213 | . . . . . 4 5 1 12 13 9 14 . 12 . 6 . . 5 14 13 3 1 12 21 8 10 . 35 15 Projectile 136 | . . 4 1 . . 1 2 . 2 1 1 . 3 2 22 3 1 8 8 . 2 . 1 18 . 15 1 36 4 AOE 296 | . 11 . 21 . 25 69 . . . . . . . 8 . . . . . . . . . 79 . 60 . . 23 Terrain Rammed . | . . . . . . . . . . . . . . . . . . . . . . . . . . . . . . Walls Destroyed . | . . . . . . . . . . . . . . . . . . . . . . . . . . . . . . Machines Disabled . | . . . . . . . . . . . . . . . . . . . . . . . . . . . . . . Actions | -11 -10 -10 -9 -9 -8 -8 -8 -8 -7 -7 -6 -6 -6 -6 -6 -6 -6 -5 -5 -5 -5 -4 -4 -4 -4 -3 -3 -2 -1 --------- Run | Yrd Mat Min Mat Min Mat Gar Mat Gar Fac Gar Fac Was Fac Gar Ext Cet Arc Fac Gar Fac Gar Fac Gar Arm Lab Res Gar Res Acc Total 23876 | 65 949 417 1824 653 911 508 677 286 1711 911 812 69 580 1101 759 436 168 470 1037 365 495 454 905 2259 37 1632 307 1724 1354 Wait 1935 | . 31 63 147 9 62 2 52 13 232 11 23 . 205 63 111 70 19 36 32 7 85 88 14 125 . 163 12 140 120 Move 18706 | 48 818 300 1512 630 738 364 540 211 1317 754 722 63 321 859 424 316 129 394 772 319 283 330 740 1811 28 1247 266 1345 1105 Hop . | . . . . . . . . . . . . . . . . . . . . . . . . . . . . . . Pick Up 170 | 2 2 1 17 3 12 10 4 2 11 5 3 . . 10 4 5 5 1 7 1 11 3 24 9 . 7 4 4 3 Fast Attach 286 | 7 6 2 9 . 7 4 5 6 12 9 8 . 5 19 4 6 . 2 17 3 4 3 3 30 . 23 10 41 41 Attach 133 | . 1 . 4 . 4 4 7 1 10 2 4 . 4 10 5 4 . 3 6 1 10 2 4 13 . 19 1 8 6 Detach 49 | . 2 . 3 . 2 4 3 1 2 2 . . 1 1 1 3 . 1 2 . 3 . . 2 . 6 1 6 3 Swap 188 | . 7 10 13 1 8 7 8 1 10 9 7 . 4 6 4 2 2 4 8 2 5 5 9 29 . 17 3 1 6 Drop 273 | . 9 7 16 4 16 7 7 1 17 11 7 . 4 12 . 16 4 2 18 3 8 3 17 33 . 11 7 29 4 Fire 1107 | 8 69 32 86 6 57 43 48 28 65 24 20 6 18 64 40 6 2 16 64 10 70 14 35 95 . 73 3 97 8 Melee 591 | . . . . . 5 50 2 20 35 43 18 . 17 38 18 . 6 10 36 18 12 3 45 37 9 61 . 53 55 Ram 4 | . . . . . . . . . . . . . . . . . . . . . . . . . . 1 . . 3 Kick 24 | . 4 2 17 . . . . . . . . . 1 . . . . . . . . . . . . . . . . Crush 4 | . . . . . . . 1 . . . . . . . . . . 1 . . . . . . . 2 . . . Escape Stasis 27 | . . . . . . . . 2 . 5 . . . 18 . . . . . . . . 1 . . 1 . . . Rewire 300 | . . . . . . . . . . 36 . . . 1 124 . 1 . 75 1 4 3 13 41 . 1 . . . Trap 47 | . . . . . . 13 . . . . . . . . . . . . . . . . . 34 . . . . . Miscellaneous 32 | . . . . . . . . . . . . . . . 24 8 . . . . . . . . . . . . . Route ------- -11/Scrapyard -10/Materials (discovered 5 exits: *Mat x3 / [*Min x2]) -10/Mines -9/Materials (discovered 5 exits: *Mat x3 / *Min x2) -9/Mines (discovered 4 exits: *Mat x2 / *Exi / [*Zio]) -8/Materials (discovered 4 exits: *Fac x3 / Gar) -8/Garrison (discovered 3 exits: *Mat x3) -8/Materials (discovered 4 exits: *Fac x3 / Gar) -8/Garrison -7/Factory (discovered 6 exits: *Fac x2 / Sto / *Low x2 / Gar) -7/Garrison (discovered 3 exits: *Fac x3) -6/Factory -6/Waste -6/Factory (discovered 2 exits: *Fac / Gar) -6/Garrison (discovered 3 exits: *Ext x3) -6/Extension (discovered 2 exits: *Fac / *Cet) -6/Cetus (discovered 2 exits: *Fac / *Arc) -6/Archives (discovered 3 exits: *Fac / [*Hub x2]) -5/Factory (discovered 2 exits: [*Upp] / Gar) -5/Garrison (discovered 3 exits: *Fac x3) -5/Factory -5/Garrison -4/Factory -4/Garrison (discovered 3 exits: *Arm x3) -4/Armory (discovered 3 exits: *Res x2 / *Lab) -4/Lab -3/Research (discovered 2 exits: *Res / Gar) -3/Garrison -2/Research -1/Access History --------- Turn | Location | Event 4 | -11/Scrapyard | Discovered new exit (range 14) 89 | -11/Scrapyard | Entered Materials 166 | -10/Materials | Discovered new exit (range 7) 305 | -10/Materials | Discovered new exit (range 7) 308 | -10/Materials | Build established: Mutant 646 | -10/Materials | Discovered new exit (range 7) 842 | -10/Materials | Discovered new exit (range 8) 1000 | -10/Materials | Central database locked down 1002 | -10/Materials | Discovered new exit (range 16) 1044 | -10/Materials | Learned 4 Subcaves zone layouts 1076 | -10/Materials | Learned location of 1 exit from Storage 1104 | -10/Materials | Learned 2 Mines zone layouts 1114 | -10/Materials | Learned location of 1 exit from Recycling 1293 | -10/Materials | Entered Mines 1343 | -10/Mines | Core integrity fell below 50% 1430 | -10/Mines | Met a Derelict bent on vengeance 1435 | -10/Mines | Discovered new exit (range 4) 1566 | -10/Mines | Learned location of Zion (-7) 1706 | -10/Mines | Build established: Scavenger-Mutant 1814 | -10/Mines | Entered Materials 1814 | -9/Materials | Accompanied by 2 allies 1814 | -9/Materials | Evolved 2 slots: Utility x2 1819 | -9/Materials | Led the pair of lost Derelicts to an unsafe place 2100 | -9/Materials | Repaired Adv. Beam Cannon 2124 | -9/Materials | Discovered new exit (range 14) 2197 | -9/Materials | Build established: Mutant 2518 | -9/Materials | Build established: Scavenger-Mutant 2526 | -9/Materials | Discovered new exit (range 16) 2578 | -9/Materials | Discovered new exit (range 14) 2610 | -9/Materials | Identified exit to Mines 2687 | -9/Materials | Learned Storage emergency access door positions 2751 | -9/Materials | Identified exit to Materials 2807 | -9/Materials | Loaded intel: 10 trap records 2849 | -9/Materials | Build established: Mutant 2851 | -9/Materials | Learned location of Recycling (-7) 2884 | -9/Materials | Learned location of 1 exit from Recycling 3045 | -9/Materials | Learned Materials stockpile data 3076 | -9/Materials | Central database locked down 3284 | -9/Materials | Build established: Scavenger-Mutant 3764 | -9/Materials | Repaired Imp. Medium Laser 4897 | -9/Materials | Entered Mines 5296 | -9/Mines | Met a Derelict shopkeep closing up shop 5441 | -9/Mines | A Derelict revealed a hidden shortcut to a safe place 5461 | -9/Mines | Received a Rocket Launcher from a helpful Derelict 5513 | -9/Mines | Assisted by bots powering up and referring to "LRC-V3" 5538 | -9/Mines | Discovered exit to Materials (range 15) 5606 | -9/Mines | Build established: Mutant 5692 | -9/Mines | Discovered exit to Materials (range 13) 5708 | -9/Mines | Identified exit to Exiles 5747 | -9/Mines | Deemed a non-threat by the Exiles lab entrance 6143 | -9/Mines | Entered Materials 6143 | -8/Materials | Accompanied by 3 allies 6143 | -8/Materials | Evolved 2 slots: Weapon x2 6481 | -8/Materials | Discovered new exit (range 15) 6614 | -8/Materials | Build established: Scavenger-Gunner 6652 | -8/Materials | Repaired Enh. Autogun 6794 | -8/Materials | Repaired Aluminum Leg 7084 | -8/Materials | Build established: Gunner 7534 | -8/Materials | Learned Factory trap positions 7552 | -8/Materials | Discovered new exit (range 15) 7564 | -8/Materials | Identified exit to Factory 7586 | -8/Materials | Garrison activated, responded to threat 7601 | -8/Materials | Learned location of Extension (-6) 7601 | -8/Materials | Identified exit to Garrison 7662 | -8/Materials | Entered Garrison 7662 | -8/Garrison | Accompanied by 3 allies 7700 | -8/Garrison | Triggered checkpoint 7739 | -8/Garrison | Garrison Relay disabled 7787 | -8/Garrison | Installed Relay Interface Framework 7900 | -8/Garrison | Triggered checkpoint 7901 | -8/Garrison | Triggered checkpoint 7961 | -8/Garrison | Lost 3 allies 8001 | -8/Garrison | Lost 5 parts (1p1u3w) 8284 | -8/Garrison | Discovered new exit (range 79) 8284 | -8/Garrison | Discovered new exit (range 54) 8284 | -8/Garrison | Discovered new exit (range 25) 8298 | -8/Garrison | Garrison Relay disabled 8304 | -8/Garrison | Build established: Scavenger-Mutant 8325 | -8/Garrison | Discovered new exit (range 70) 8325 | -8/Garrison | Discovered new exit (range 46) 8325 | -8/Garrison | Discovered new exit (range 30) 8466 | -8/Garrison | Expanded RIF knowledge: Signal Jamming 8511 | -8/Garrison | Entered Materials 8868 | -8/Materials | Build established: Scavenger-Gunner 9287 | -8/Materials | Central database locked down 9356 | -8/Materials | Learned Factory stockpile data 9373 | -8/Materials | Learned Storage emergency access door positions 9382 | -8/Materials | Learned Storage emergency access door positions 9383 | -8/Materials | Learned location of 1 exit from Lower Caves 9385 | -8/Materials | Learned 8 Factory zone layouts 9393 | -8/Materials | Learned Storage trap positions 9717 | -8/Materials | Discovered exit to Factory (range 7) 9788 | -8/Materials | Identified exit to Garrison 9788 | -8/Materials | Entered Garrison 9950 | -8/Garrison | Triggered checkpoint 9985 | -8/Garrison | Garrison Relay disabled 10037 | -8/Garrison | System corruption reached 10% 10194 | -8/Garrison | Triggered checkpoint 10203 | -8/Garrison | Core integrity fell below 50% 10261 | -8/Garrison | Lost 3 parts (1p2w) 10334 | -8/Garrison | Expanded RIF knowledge: Program Shield 10438 | -8/Garrison | Discovered exit to Factory (range 12) 10465 | -8/Garrison | Entered Factory 10465 | -7/Factory | Evolved 2 slots: Propulsion x2 10466 | -7/Factory | Identified exit to Storage 10466 | -7/Factory | Identified exit to Lower Caves 10467 | -7/Factory | Identified exit to Factory 10468 | -7/Factory | Loaded intel: 82 trap records 10523 | -7/Factory | Build established: Bothacker-Gunner 11675 | -7/Factory | Lost 7 parts (1p3n3w) 11909 | -7/Factory | Build established: Bothacker-Mutant 12101 | -7/Factory | Fabricated VSS Leg (x2) 12201 | -7/Factory | Discovered exit to Factory (range 15) 12225 | -7/Factory | Learned 2 Proximity Caves zone layouts 12306 | -7/Factory | Central database locked down 12339 | -7/Factory | Learned Factory stockpile data 12382 | -7/Factory | Learned location of 1 exit from Cetus 12437 | -7/Factory | Learned Extension security intel 12450 | -7/Factory | Loaded intel: 6 repair station locations 12471 | -7/Factory | Learned location of 2 exits from Upper Caves 12500 | -7/Factory | Learned Factory stockpile data 12538 | -7/Factory | Learned 4 Hub_04(d) zone layouts 12608 | -7/Factory | Identified exit to Garrison 12612 | -7/Factory | Build established: Bothacker-Gunner 12645 | -7/Factory | Entered Garrison 12645 | -7/Garrison | Accompanied by 2 allies 12719 | -7/Garrison | Triggered checkpoint 12739 | -7/Garrison | Garrison Relay disabled 13081 | -7/Garrison | Garrison Relay disabled 13143 | -7/Garrison | Triggered checkpoint 13145 | -7/Garrison | Lost 3 allies 13147 | -7/Garrison | Discovered exit to Factory (range 8) 13275 | -7/Garrison | Triggered checkpoint 13277 | -7/Garrison | Triggered checkpoint 13343 | -7/Garrison | Triggered checkpoint 13413 | -7/Garrison | Triggered checkpoint 13414 | -7/Garrison | Garrison Relay disabled 13500 | -7/Garrison | Discovered exit to Factory (range 10) 13599 | -7/Garrison | Triggered checkpoint 13651 | -7/Garrison | Discovered exit to Factory (range 10) 13663 | -7/Garrison | Triggered checkpoint 13675 | -7/Garrison | Expanded RIF knowledge: Watcher Feeds 13756 | -7/Garrison | Expanded RIF knowledge: Coupler Efficiency 13870 | -7/Garrison | Entered Factory 13870 | -6/Factory | Accompanied by 8 allies 13870 | -6/Factory | Evolved 2 slots: Utility x2 13871 | -6/Factory | Identified exit to Extension 14930 | -6/Factory | Manually triggered Chute Trap 14930 | -6/Factory | Sucked down chute 14930 | -6/Factory | Entered Waste 14938 | -6/Waste | Spotted C-40 Crusher 14942 | -6/Waste | Spotted C-40 Crusher 14945 | -6/Waste | EMP discharged 14956 | -6/Waste | Spotted C-40 Crusher 14961 | -6/Waste | Spotted C-40 Crusher 14969 | -6/Waste | Build established: Skirmisher 14985 | -6/Waste | Spotted C-40 Crusher 14998 | -6/Waste | Discovered new exit (range 14) 15012 | -6/Waste | Identified exit to Factory 15014 | -6/Waste | Entered Factory 15024 | -6/Factory | Discovered new exit (range 17) 15122 | -6/Factory | Repaired Cld. Particle Cannon 15194 | -6/Factory | Repaired Cld. Particle Cannon 15252 | -6/Factory | Identified exit to Garrison 15392 | -6/Factory | Fabricated M-13 Machinist (x1) 15421 | -6/Factory | Garrison activated, responded to threat 15452 | -6/Factory | Fabricated H-55 Commando (x2) 15726 | -6/Factory | Entered Garrison 15726 | -6/Garrison | Accompanied by 2 allies 15796 | -6/Garrison | Triggered checkpoint 15868 | -6/Garrison | Lost 6 parts (1p2n1u2w) 15984 | -6/Garrison | Triggered checkpoint 16155 | -6/Garrison | Garrison Relay disabled 16168 | -6/Garrison | Triggered checkpoint 16215 | -6/Garrison | Discovered exit to Extension (range 3) 16288 | -6/Garrison | Triggered checkpoint 16304 | -6/Garrison | Triggered checkpoint 16320 | -6/Garrison | Core integrity fell below 50% 16350 | -6/Garrison | Lost 5 parts (3n2w) 16461 | -6/Garrison | Build established: Bothacker-Gunner 16656 | -6/Garrison | Garrison Relay disabled 16670 | -6/Garrison | Triggered checkpoint 16716 | -6/Garrison | Lost 3 parts (1n2w) 16758 | -6/Garrison | H-XX Assembler disabled 16931 | -6/Garrison | Discovered exit to Extension (range 8) 16977 | -6/Garrison | Build established: Bothacker-Mutant 17277 | -6/Garrison | Expanded RIF knowledge: Zone Cloak 17364 | -6/Garrison | Discovered exit to Extension (range 3) 17408 | -6/Garrison | Triggered checkpoint 17448 | -6/Garrison | System corruption reached 10% 17478 | -6/Garrison | Lost 4 parts (2u2w) 17510 | -6/Garrison | Garrison Relay disabled 17595 | -6/Garrison | Entered Extension 17595 | -6/Extension | Accompanied by 2 allies 17760 | -6/Extension | Core integrity fell below 20% 17798 | -6/Extension | Rescued A7 17861 | -6/Extension | Lost 3 parts (2n1u) 17973 | -6/Extension | Rescued a captive Derelict 17975 | -6/Extension | Rescued a captive Derelict 18299 | -6/Extension | Rescued a captive Derelict 18300 | -6/Extension | Rescued a captive Derelict 18314 | -6/Extension | Lost 3 allies 18434 | -6/Extension | Rescued a captive Derelict 18466 | -6/Extension | Rescued a captive Derelict 18467 | -6/Extension | Rescued a captive Derelict 18608 | -6/Extension | Discovered new exit (range 10) 18609 | -6/Extension | Discovered new exit (range 6) 18656 | -6/Extension | Build established: Commander-Gunner 18748 | -6/Extension | Entered Cetus 18748 | -6/Cetus | Accompanied by 21 allies (A7) 18749 | -6/Cetus | Identified exit to Archives 18753 | -6/Cetus | Acquired a Cetus Manufacturing Module code from A7 18774 | -6/Cetus | Allies destroyed Cetus Guard 18796 | -6/Cetus | Lost 4 allies 18857 | -6/Cetus | Started Cetus Manufacturing Module 18882 | -6/Cetus | Manufactured an Enhanced Grunt 18893 | -6/Cetus | Escorted A7 to Cetus Mainframe 18907 | -6/Cetus | Manufactured an Enhanced Grunt 18932 | -6/Cetus | Manufactured an Enhanced Grunt 18957 | -6/Cetus | Manufactured an Enhanced Grunt 18982 | -6/Cetus | Manufactured an Enhanced Grunt 18985 | -6/Cetus | Cetus Manufacturing Module disabled 19101 | -6/Cetus | Discovered new exit (range 27) 19167 | -6/Cetus | Allies destroyed Cetus Guard 19170 | -6/Cetus | Spotted Cetus Guard 19174 | -6/Cetus | Allies destroyed Cetus Guard 19196 | -6/Cetus | Met Revision 17 19347 | -6/Cetus | Build established: Commander-Tank 19393 | -6/Cetus | Entered Archives 19393 | -6/Archives | Accompanied by 14 allies (A7) 19398 | -6/Archives | Received a hacking code to weaken MAIN.C 19447 | -6/Archives | Discovered new exit (range 16) 19512 | -6/Archives | Discovered new exit (range 15) 19564 | -6/Archives | Discovered new exit (range 16) 19646 | -6/Archives | Entered Factory 19646 | -5/Factory | Accompanied by 12 allies 19646 | -5/Factory | Evolved 2 slots: Utility x2 19811 | -5/Factory | Discovered new exit (range 18) 19907 | -5/Factory | Fabricated I-36 Angel? 19942 | -5/Factory | Identified exit to Garrison 19946 | -5/Factory | Build established: Scavenger-Tank 20121 | -5/Factory | Fabricated M-13 Machinist (x1) 20124 | -5/Factory | Lost 4 allies 20198 | -5/Factory | Spotted B-75 Beast 20210 | -5/Factory | Allies destroyed B-75 Beast 20358 | -5/Factory | Identified exit to Garrison 20387 | -5/Factory | Garrison activated, responded to threat 20399 | -5/Factory | Entered Garrison 20399 | -5/Garrison | Accompanied by 6 allies 20465 | -5/Garrison | Triggered checkpoint 20468 | -5/Garrison | Garrison Relay disabled 20487 | -5/Garrison | Spotted B-86 Titan 20490 | -5/Garrison | Spotted B-90 Cyclops 20513 | -5/Garrison | Destroyed B-86 Titan 20521 | -5/Garrison | Allies destroyed B-90 Cyclops 20528 | -5/Garrison | Lost 3 allies 20557 | -5/Garrison | Found Unknown Device 20557 | -5/Garrison | Identified Quantum Capacitor 20575 | -5/Garrison | Rewired B-90 Cyclops 20593 | -5/Garrison | Rewired B-86 Titan 20726 | -5/Garrison | Triggered checkpoint 20726 | -5/Garrison | Spotted B-75 Beast 20753 | -5/Garrison | Destroyed B-75 Beast 20753 | -5/Garrison | Triggered checkpoint 20781 | -5/Garrison | Triggered checkpoint 20864 | -5/Garrison | Discovered new exit (range 14) 20933 | -5/Garrison | Triggered checkpoint 20968 | -5/Garrison | Garrison Relay disabled 21213 | -5/Garrison | Triggered checkpoint 21319 | -5/Garrison | Discovered new exit (range 11) 21381 | -5/Garrison | Expanded RIF knowledge: Zone Cloak 21465 | -5/Garrison | Triggered checkpoint 21485 | -5/Garrison | Garrison Relay disabled 21487 | -5/Garrison | Triggered checkpoint 21753 | -5/Garrison | Triggered checkpoint 21794 | -5/Garrison | Garrison Relay disabled 21947 | -5/Garrison | Found embedded Infiltrators 21989 | -5/Garrison | Triggered checkpoint 22020 | -5/Garrison | Garrison Relay disabled 22064 | -5/Garrison | Discovered new exit (range 10) 22103 | -5/Garrison | Entered Factory 22103 | -5/Factory | Accompanied by 9 allies 22130 | -5/Factory | Build established: Botlord-Gunner 22280 | -5/Factory | Lost 5 allies 22403 | -5/Factory | First assault squad dispatched 22467 | -5/Factory | Lost 3 allies 22710 | -5/Factory | Identified exit to Garrison 22710 | -5/Factory | Entered Garrison 22710 | -5/Garrison | Accompanied by 1 ally 22851 | -5/Garrison | Garrison Relay disabled 22860 | -5/Garrison | Triggered checkpoint 23004 | -5/Garrison | Build established: Botlord-Tank 23074 | -5/Garrison | Spotted B-75 Beast 23098 | -5/Garrison | Triggered checkpoint 23126 | -5/Garrison | Destroyed B-75 Beast 23129 | -5/Garrison | Lost 6 allies 23270 | -5/Garrison | Triggered checkpoint 23292 | -5/Garrison | Lost 3 allies 23340 | -5/Garrison | Expanded RIF knowledge: Threat Obfuscation 23392 | -5/Garrison | Triggered checkpoint 23404 | -5/Garrison | Garrison Relay disabled 23452 | -5/Garrison | Discovered new exit (range 12) 23477 | -5/Garrison | Entered Factory 23477 | -4/Factory | Accompanied by 3 allies 23477 | -4/Factory | Evolved 2 slots: Power x1, Utility x1 23550 | -4/Factory | Repaired Centrium Heavy Treads 23972 | -4/Factory | Build established: Botlord-Skirmisher 24060 | -4/Factory | Garrison activated, responded to threat 24095 | -4/Factory | Identified exit to Garrison 24160 | -4/Factory | Entered Garrison 24160 | -4/Garrison | Accompanied by 10 allies 24226 | -4/Garrison | Triggered checkpoint 24278 | -4/Garrison | Garrison Relay disabled 24341 | -4/Garrison | Spotted B-86 Titan 24344 | -4/Garrison | Triggered checkpoint 24356 | -4/Garrison | Allies destroyed B-86 Titan 24375 | -4/Garrison | Triggered checkpoint 24398 | -4/Garrison | Triggered checkpoint 24399 | -4/Garrison | Lost 3 allies 24424 | -4/Garrison | Triggered checkpoint 24504 | -4/Garrison | Lost 6 allies 24539 | -4/Garrison | Discovered new exit (range 8) 24552 | -4/Garrison | Triggered checkpoint 24575 | -4/Garrison | Garrison Relay disabled 24672 | -4/Garrison | Build established: Botlord-Tank 24797 | -4/Garrison | Discovered new exit (range 11) 24804 | -4/Garrison | Triggered checkpoint 24826 | -4/Garrison | Garrison Relay disabled 25074 | -4/Garrison | Triggered checkpoint 25092 | -4/Garrison | Garrison Relay disabled 25372 | -4/Garrison | Expanded RIF knowledge: Threat Obfuscation 25388 | -4/Garrison | Build established: Botlord-Skirmisher 25418 | -4/Garrison | Discovered new exit (range 12) 25420 | -4/Garrison | Triggered checkpoint 25450 | -4/Garrison | Triggered checkpoint 25470 | -4/Garrison | Garrison Relay disabled 25575 | -4/Garrison | Identified exit to Armory 25639 | -4/Garrison | Entered Armory 25639 | -4/Armory | Accompanied by 16 allies 25732 | -4/Armory | Lost 9 allies 26499 | -4/Armory | Found Fusion Bomb Launcher 26874 | -4/Armory | Found Prototype Hackware 26874 | -4/Armory | Identified Exp. System Shield 27187 | -4/Armory | Found Unknown Device 27187 | -4/Armory | Identified Adv. Force Booster 27227 | -4/Armory | Found Prototype Launcher 27227 | -4/Armory | Identified Mni. Smartbomb Launcher 27420 | -4/Armory | Fabricated H-77 Assassin (x2) 27643 | -4/Armory | Fabricated H-77 Assassin? 27814 | -4/Armory | Discovered new exit (range 12) 27832 | -4/Armory | Identified exit to Research 27847 | -4/Armory | Lost 4 allies 27864 | -4/Armory | Build established: Commander-Tank 27967 | -4/Armory | Discovered new exit (range 4) 28077 | -4/Armory | Spotted B-86 Titan 28079 | -4/Armory | Assimilated Titan 7a with formatsys_high 28181 | -4/Armory | Fabricated H-77 Assassin? 28186 | -4/Armory | Lost 3 allies 28293 | -4/Armory | Lost 3 allies 28588 | -4/Armory | Discovered exit to Research (range 4) 28889 | -4/Armory | First assault squad dispatched 28970 | -4/Armory | Fabricated H-77 Assassin? 29127 | -4/Armory | Identified exit to Lab 29147 | -4/Armory | Entered Lab 29147 | -4/Lab | Accompanied by 17 allies 29147 | -4/Lab | Discovered exit to Research (range 9) 29212 | -4/Lab | Unable to decrypt terminal 29215 | -4/Lab | Entered Research 29215 | -3/Research | Accompanied by 17 allies 29215 | -3/Research | Evolved 2 slots: Utility x2 29544 | -3/Research | Build established: Commander-Assassin 29699 | -3/Research | Spotted B-86 Titan 29719 | -3/Research | Allies destroyed B-86 Titan 29875 | -3/Research | Lost 7 allies 29965 | -3/Research | First assault squad dispatched 30131 | -3/Research | Lost 3 allies 30375 | -3/Research | Repaired Centrium Medium Armor Plating 30388 | -3/Research | Build established: Botlord-Skirmisher 30429 | -3/Research | Discovered new exit (range 22) 30443 | -3/Research | Spotted B-86 Titan 30464 | -3/Research | Destroyed B-86 Titan 30502 | -3/Research | Identified exit to Research 30533 | -3/Research | Lost 6 allies 30568 | -3/Research | Lost 9 parts (2n3u4w) 30653 | -3/Research | Lost 3 parts (1p2w) 31019 | -3/Research | System corruption reached 10% 31039 | -3/Research | Core integrity fell below 50% 31048 | -3/Research | Released all parts (12) 31075 | -3/Research | Lost 5 parts (1p1n2u1w) 31194 | -3/Research | Found Prototype Device 31194 | -3/Research | Identified Exp. Thermal Defense Suite 31274 | -3/Research | Identified exit to Garrison 31274 | -3/Research | Entered Garrison 31281 | -3/Garrison | Expanded RIF knowledge: Structural Interface 31315 | -3/Garrison | Spotted B-86 Titan 31316 | -3/Garrison | Found Relay Coupler [Proto] 31318 | -3/Garrison | Found Relay Coupler [Proto] 31319 | -3/Garrison | Found Relay Coupler [Proto] 31358 | -3/Garrison | Spotted B-86 Titan 31470 | -3/Garrison | Triggered checkpoint 31472 | -3/Garrison | Spotted B-86 Titan 31477 | -3/Garrison | Triggered checkpoint 31484 | -3/Garrison | Triggered checkpoint 31535 | -3/Garrison | Discovered exit to Research (range 10) 31547 | -3/Garrison | Entered Research 31547 | -2/Research | Evolved 2 slots: Propulsion x2 31719 | -2/Research | Found Hvy. Reactive Plating 31730 | -2/Research | Found Prototype Device 31730 | -2/Research | Identified Thermal Barrier 31746 | -2/Research | Spotted B-90 Cyclops 31885 | -2/Research | Build established: Infiltrator-Assassin 32158 | -2/Research | Discovered new exit (range 3) 32710 | -2/Research | Lost 3 parts (3u) 32763 | -2/Research | Found Prototype Device 32763 | -2/Research | Identified Exp. EM Disruption Field 32917 | -2/Research | System corruption reached 10% 33028 | -2/Research | Cargo convoy interrupted 33136 | -2/Research | Lost 4 parts (4u) 33255 | -2/Research | Lost 9 parts (1p5n1u2w) 33324 | -2/Research | Lost 3 parts (1p1n1u) 33358 | -2/Research | System corruption reached 30% 33435 | -2/Research | Lost 6 parts (3n1u2w) 33490 | -2/Research | Core integrity fell below 50% 33580 | -2/Research | Core integrity fell below 20% 33615 | -2/Research | Entered Access 33615 | -1/Access | Evolved 2 slots: Propulsion x2 34370 | -1/Access | System corruption reached 10% 34405 | -1/Access | Lost 15 parts (4p5n4u2w) 34413 | -1/Access | Core integrity fell below 50% 34507 | -1/Access | Crushed by falling debris 34593 | -1/Access | Core integrity fell below 20% 34598 | -1/Access | Lost 15 parts (2p7n3u3w) 34604 | -1/Access | Destroyed by H-88 Terminator with KE Penetrator Last Messages --------------- 34563_ Gyrokinetic Inverter destroyed. 34564_ S-43 Plague destroyed. 34564_ Mni. Smartbomb Launcher destroyed. 34564_ Destroyed Mni. Smartbomb Launcher. 34564_ Destroyed Xenon Bombardment Thruster. 34564_ S-43 Plague destroyed. 34564_ Destroyed Xenon Bombardment Thruster. 34567_ System corrupted: Matter fused (-9). 34567_ Enh. Nova Cannon destroyed. 34567_ Acquired 28 matter. 34568_ Acquired Lgt. Antimatter Reactor. 34569_ Acquired 11 matter. 34582_ System corrupted: Substantial component data lost. 34583_ Acquired Mic. Antimatter Reactor. 34586_ Slammed into S-43 Plague. 34592_ Penetrated by Slug. 34595_ Slug penetrates Wall. 34598_ Penetrated by Slug. 34604_ Slug penetrates Garrison Access. Map ----- +----------------------------------------------------+ | ?????????????????????????????????????????? | | ?????????????????????????????????????????? | | ????????????????????????????? ???????????? | | ????????????????????????????? ???????????? | | ????????????????????????????? ???????????? | | ????????????????????????????? ???????????? | | ????????????????????????????? ???????????? | | ????????????????????????????? ????????? ?? | | ????????????????????????????? ???????? ?? | | ????????????????????????????# #???? ?????? | | ????????????????????????????# #????????? | | ?????????????????????????#### #?? ????? ? | | ?????????????????????????+ /???????#??? | | ???????????????###???????# #???? ?????# | | ??????????????? ???????# # ??? ?##??? | | ???????????????# #???????# #?? ???????? | | ####?###+#?????# #???????# #?#??#?##### | | # #?????# #???????# ##+######## | | # #?????# #???????# ## ! # | | # " ####### ##??????# ## # | | # """ # k######## ## "" %/ | | # """ / % / """ # | | # " # ########### T" !# | | # ##### #????###### """ # | | # #???# #?? # "" # | | # ????# @#? # # | | ?# #?????# # # # | | ?# * #?????# t/ #####+#### | | ## #?????# # * #?? ?? # | | # % ######## ###########??? ???##/## | | ## # #???? ???? ? | | ?### #????? ? ??? ? | | ???# ## #???? ?????? ? | | ???#### ""G"" ###### #????? ?????? ? | | ??????# " " #??????????????????? | | ??????# " "h #??????????????????? ? | | ??????# h #??????????????????? | | ??????# #?????????????????????? | | ??????# #?????????????????????? | | ??????# ###???????????????????? | | ??????# #???????????????????? | | ??????###### #???????????????????? | | ???????????# #???????????????????? | | ############ #???????????????????? | | # # #???????????????????? | | # # #???????????????????? | | # # #???????????????????? | | ? # #???????????????????# | | ? # ##########+#?????? | | ?? " # ? | +----------------------------------------------------+ Best States ------------- Heat Dissipation 90 Coolant Potential 100 Energy Generation 45 Energy Capacity 600 Matter Stores 300 Matter Capacity 300 Sight Range 22 Robot Scan Range 16 Terrain Scan Range 24 Terrain Scan Density 285 ECM Strength 2 Cloak Strength 4 Base Temperature (-) 200 EM Shielding 2 Corruption Block 8 Armor Coverage 900 Resistance: KI 40 Resistance: TH 50 Resistance: EM 20 Core Shielding 30 Power Shielding 66 Propulsion Shielding 33 Point Defense Rating 480 Weapon Cycling 20 Phase Shifting 15 Evasion (%) 85 Targeting Accuracy 8 Melee Accuracy 8 Target Analysis 12 Core Analysis 6 Recoil Reduction 4 Offensive Hacking 24 Defensive Hacking 16 Relay Coupler Types 4 Relay Coupler Value 114 Authchip Count 5 Item Schematics ----------------- Adv. Beam Cannon | -9/Materials | Scanalyzed Datajack | -9/Materials | Scanalyzed Plasma Cutter | -9/Materials | Scanalyzed Aluminum Leg | -9/Materials | Scanalyzed Enh. Autogun | -9/Materials | Scanalyzed Katana | -9/Materials | Scanalyzed Mni. Grenade Launcher | -9/Materials | Scanalyzed Imp. Medium Laser | -9/Materials | Scanalyzed VSS Leg | -8/Materials | Scanalyzed Adv. Point Defense System | -4/Armory | Hacked Lrn. Proton Cannon | -3/Research | Extracted Robot Schematics ------------------ M-13 Machinist | -9/Materials | Hacked H-55 Commando | -7/Factory | Hacked H-77 Assassin | -4/Armory | Hacked Fabricated ------------ VSS Leg | x2 | -7/Factory | Authchip M-13 Machinist | x1 | -6/Factory | Authchip H-55 Commando | x2 | -6/Factory I-36 Angel | x1 | -5/Factory | Preloaded M-13 Machinist | x1 | -5/Factory H-77 Assassin | x2 | -4/Armory | Authchip H-77 Assassin | x2 | -4/Armory | Authchip H-77 Assassin | x2 | -4/Armory H-77 Assassin | x2 | -4/Armory Repaired ---------- Adv. Beam Cannon | 48% | -9/Materials Imp. Medium Laser | 35% | -9/Materials Enh. Autogun | 60% | -8/Materials Aluminum Leg | 54% | -8/Materials Cld. Particle Cannon | 2% | -6/Factory Cld. Particle Cannon | 17% | -6/Factory Centrium Heavy Treads | 3% | -4/Factory Centrium Medium Armor Plating | 50% | -3/Research Alien Tech Used ----------------- None Achievements -------------- No Explosion For You Challenges ------------ None Game ------ Seed RelayAbsorptionFocus Manual? 0 Play Time 06:42:22 Cumulative 340.2 hours Start 2025.07.15 @ 13:47:32 End 2025.07.16 @ 21:17:07 Sessions 3 Manual Loads 0 Difficulty Rogue Special Mode None Game No. 163 Rogue 163 Adventurer 0 Explorer 0 Win Type - Total 23 Types 8/1/5/1/5/1/0/1/0/1 Lore% 89 Gallery% 79 Achievement% 76 Wizard Run 0 Options --------- Layout 1 ASCII 0 Keyboard 0 Movement Numpad Keybinds 0 Fullscreen 1 Font 24/Smallcaps Map View 50x35 Zoom Use 0% Tactical HUD 1 Map Filters NONE Filters NONE Steam 1 RUN: de72e52b-9130-4293-aa98-08716a9b93f3